Workbook

Sheet A1.1 Distributor Information
C3: =D8 -> EPCOR Natural Gas Limited Partnership
C4: ="OEB Application Number: " & D9 -> OEB Application Number: EB-2025-0178 Exhibit A - 2026 Custom Incentive Application
C6: Distributor Information
C8: Distributor Name | D8: EPCOR Natural Gas Limited Partnership
C9: OEB Application Number | D9: EB-2025-0178 Exhibit A - 2026 Custom Incentive Application
C12: =MID(CELL("filename",A1),FIND("]",CELL("filename",A1))+1,255) -> A1.1 Distributor Information

Sheet B1.1 Current Distribution Rates
C5: Current Distribution Tariff Sheet Rates
E7: Fixed | G7: Delivery Charge | J7: Delivery Charge
C8: Rate Class | E8: Monthly Base | F8: =OneDollar -> Bill 32 Rate | G8: Tier 1 | H8: Tier 2 | I8: Tier 3 | J8: Contract Demand | K8: Gas Supply | L8: Upstream Recovery Charge | M8: Transportation & Storage Charge | N8: Transportation Charge From Dawn | O8: Transportation Charge From Kirkwall | P8: Transportation Charge From Parkway
E9: $/month | F9: $ / month | G9: ₵ / m3 | H9: ₵ / m3 | I9: ₵ / m3 | J9: ₵ /contracted m3 | K9: ₵ / m3 | L9: (A) | M9: ₵ / m3 | N9: ₵ /contracted m3 | O9: ₵ /contracted m3 | P9: ₵ /contracted m3
C10: Rate 1 | D10: General Firm Service | E10: 27.99748422 | F10: 1 | G10: 29.99208306 | H10: 29.40122231 | I10: 28.5327886 | K10: 18.8887 | L10: 1.474 | M10: 2.6982
C11: Rate 6 | D11: Large Volume General Firm Service | E11: 114.1725084 | F11: 1 | G11: 27.66842763 | H11: 24.90167885 | I11: 23.65635994 | K11: 18.8887 | L11: 2.92 | M11: 5.6413
C12: Rate 11 | D12: Large Volume Seasonal Service | E12: 228.3450168 | F12: 1 | G12: 17.18675851 | H12: 17.18675851 | I12: 17.18675851 | K12: 18.8887 | L12: 0.0352 | M12: 1.8166
C13: Rate 16 | D13: Contracted Firm Service | E13: 1678.98229 | F13: 1 | J13: 114.5223464 | L13: 14.2434 | N13: 18.2999 | O13: 11.848 | P13: 11.848
C14: (A) Rates 1, 6, and 11 all charged on cents / m3 basis. Rate 16 billed on cents / m3 of contracted demand basis
C18: Name for $1 Charge: | D18: Bill 32 Rate

Sheet B1.2 Billing Determinants
C2: ='A1.1 Distributor Information'!C3 -> EPCOR Natural Gas Limited Partnership
C3: ='A1.1 Distributor Information'!C4 -> OEB Application Number: EB-2025-0178 Exhibit A - 2026 Custom Incentive Application
C5: Billing Determinants
E7: Fixed | F7: Delivery Charge | I7: Delivery Charge
C8: Rate Class | E8: Monthly Base | F8: Tier 1 | G8: Tier 2 | H8: Tier 3 | I8: Contract Demand | J8: Gas Supply
C9: Rate 1 | D9: General Firm Service | E9: =5381+190+1 -> 5572 | F9: 5233468.522 | G9: 3538634.795 | H9: 95603.55758 | J9: 8270620
C10: Rate 6 | D10: Large Volume General Firm Service | E10: 72 | F10: 607189.8303 | G10: 1243388.921 | H10: 617622.2368 | J10: 2228157
C11: Rate 11 | D11: Large Volume Seasonal Service | E11: 10 | H11: 1826281.466 | J11: 1431902
C12: Rate 16 | D12: Contracted Firm Service | E12: 3 | I12: 95824 | J12: 0
C13: Source: EB-2025-0140 Gas Supply Plan Load Forecast - 2026 Forecast

Sheet B1.3 Current Rev From Rates
C2: ='A1.1 Distributor Information'!C3 -> EPCOR Natural Gas Limited Partnership
C3: ='A1.1 Distributor Information'!C4 -> OEB Application Number: EB-2025-0178 Exhibit A - 2026 Custom Incentive Application
C6: Forecasted Revenue from Current Rates
C8: Months / Year | D8: 12
D9: ='A1.1 Distributor Information'!D9 -> EB-2025-0178 Exhibit A - 2026 Custom Incentive Application
E11: Fixed Monthly | G11: Delivery Charge | J11: Delivery Charge
C12: Rate Class | E12: Base | F12: =OneDollar -> Bill 32 Rate | G12: Tier 1 | H12: Tier 2 | I12: Tier 3 | J12: Contract Demand | K12: Gas Supply | L12: Upstream Recovery Charge | M12: Transportation & Storage Charge | N12: Federal Carbon Charge | O12: Total
M13: (A)
C14: Rate 1 | D14: General Firm Service | E14: ='B1.2 Billing Determinants'!E9*'B1.1 Current Distribution Rates'!E10*$D$8 -> 1872023.785 | F14: 0 | G14: ='B1.2 Billing Determinants'!F9*'B1.1 Current Distribution Rates'!G10/100 -> 1569626.226 | H14: ='B1.2 Billing Determinants'!G9*'B1.1 Current Distribution Rates'!H10/100 -> 1040401.883 | I14: ='B1.2 Billing Determinants'!H9*'B1.1 Current Distribution Rates'!I10/100 -> 27278.36098 | J14: ='B1.2 Billing Determinants'!I9*'B1.1 Current Distribution Rates'!J10/100*$D$8 -> 0 | K14: ='B1.2 Billing Determinants'!J9*'B1.1 Current Distribution Rates'!K10/100 -> 1562212.6 | L14: ='B1.1 Current Distribution Rates'!L10*'B1.2 Billing Determinants'!$J9/100 -> 121908.9388 | M14: ='B1.1 Current Distribution Rates'!M10*'B1.2 Billing Determinants'!$J9/100 -> 223157.8688 | N14: ='B1.1 Current Distribution Rates'!Q10*'B1.2 Billing Determinants'!J9/100 -> 0 | O14: =SUM(E14:N14) -> 6416609.662
C15: Rate 6 | D15: Large Volume General Firm Service | E15: ='B1.2 Billing Determinants'!E10*'B1.1 Current Distribution Rates'!E11*$D$8 -> 98645.04724 | F15: 0 | G15: ='B1.2 Billing Determinants'!F10*'B1.1 Current Distribution Rates'!G11/100 -> 167999.8788 | H15: ='B1.2 Billing Determinants'!G10*'B1.1 Current Distribution Rates'!H11/100 -> 309624.716 | I15: ='B1.2 Billing Determinants'!H10*'B1.1 Current Distribution Rates'!I11/100 -> 146106.9394 | J15: ='B1.2 Billing Determinants'!I10*'B1.1 Current Distribution Rates'!J11/100*$D$8 -> 0 | K15: ='B1.2 Billing Determinants'!J10*'B1.1 Current Distribution Rates'!K11/100 -> 420869.8913 | L15: ='B1.1 Current Distribution Rates'!L11*'B1.2 Billing Determinants'!$J10/100 -> 65062.1844 | M15: ='B1.1 Current Distribution Rates'!M11*'B1.2 Billing Determinants'!$J10/100 -> 125697.0208 | N15: ='B1.1 Current Distribution Rates'!Q11*'B1.2 Billing Determinants'!J10/100 -> 0 | O15: =SUM(E15:N15) -> 1334005.678
C16: Rate 11 | D16: Large Volume Seasonal Service | E16: ='B1.2 Billing Determinants'!E11*'B1.1 Current Distribution Rates'!E12*$D$8 -> 27401.40201 | F16: 0 | G16: ='B1.2 Billing Determinants'!F11*'B1.1 Current Distribution Rates'!G12/100 -> 0 | H16: ='B1.2 Billing Determinants'!G11*'B1.1 Current Distribution Rates'!H12/100 -> 0 | I16: ='B1.2 Billing Determinants'!H11*'B1.1 Current Distribution Rates'!I12/100 -> 313878.5853 | J16: ='B1.2 Billing Determinants'!I11*'B1.1 Current Distribution Rates'!J12/100*$D$8 -> 0 | K16: ='B1.2 Billing Determinants'!J11*'B1.1 Current Distribution Rates'!K12/100 -> 270467.6731 | L16: ='B1.1 Current Distribution Rates'!L12*'B1.2 Billing Determinants'!$J11/100 -> 504.029504 | M16: ='B1.1 Current Distribution Rates'!M12*'B1.2 Billing Determinants'!$J11/100 -> 26011.93173 | N16: ='B1.1 Current Distribution Rates'!Q12*'B1.2 Billing Determinants'!J11/100 -> 0 | O16: =SUM(E16:N16) -> 638263.6216
C17: Rate 16 | D17: Contracted Firm Service | E17: ='B1.2 Billing Determinants'!E12*'B1.1 Current Distribution Rates'!E13*$D$8 -> 60443.36245 | F17: 0 | G17: ='B1.2 Billing Determinants'!F12*'B1.1 Current Distribution Rates'!G13/100 -> 0 | H17: ='B1.2 Billing Determinants'!G12*'B1.1 Current Distribution Rates'!H13/100 -> 0 | I17: ='B1.2 Billing Determinants'!H12*'B1.1 Current Distribution Rates'!I13/100 -> 0 | J17: ='B1.2 Billing Determinants'!I12*'B1.1 Current Distribution Rates'!J13/100*$D$8 -> 1316878.719 | K17: ='B1.2 Billing Determinants'!J12*'B1.1 Current Distribution Rates'!K13/100 -> 0 | L17: ='B1.1 Current Distribution Rates'!L13*'B1.2 Billing Determinants'!$I12*$D$8/100 -> 163783.1474 | M17: ='B1.1 Current Distribution Rates'!N13*'B1.2 Billing Determinants'!$I12/100*$D$8 -> 210428.3541 | N17: ='B1.1 Current Distribution Rates'!Q13*'B1.2 Billing Determinants'!I12/100*D8 -> 0 | O17: =SUM(E17:N17) -> 1751533.582
C18: Total Revenue | E18: =SUM(E14:E17) -> 2058513.597 | F18: 0 | G18: 1737626.105 | H18: 1350026.599 | I18: 487263.8857 | J18: 1316878.719 | K18: 2253550.164 | L18: 351258.3001 | M18: 585295.1755 | N18: 0 | O18: 10140412.54
C19: (A) Transportation & Storage for Rates 1, 6, and 11. Transportation only for Rate 16.

Sheet C1.1 Current Rate Riders
C2: ='A1.1 Distributor Information'!C3 -> EPCOR Natural Gas Limited Partnership
C3: ='A1.1 Distributor Information'!C4 -> OEB Application Number: EB-2025-0178 Exhibit A - 2026 Custom Incentive Application
C5: Current Rate Riders
C7: Delay in Revenue Recovery Rate Rider
C8: Effective Until:
C10: Rate 1 | General Firm Service | D10: cents / m3 volume | E10: 1.633 | F10: Cents/m3
C11: Rate 6 | Large Volume General Firm Service | D11: cents / m3 volume | E11: 0.909 | F11: Cents/m3
C12: Rate 11 | Large Volume Seasonal Service | D12: cents / m3 volume | E12: 0.5524 | F12: Cents/m3
C13: Rate 16 | Contracted Firm Service | D13: cents / contracted demand / month | E13: 0.0601 | F13: $/contracted demand m3
C16: Energy Content Variance Account (ECVA)
E17: ECVA Rate Rider
C19: Rate 1 | General Firm Service | E19: 0.2481 | F19: Cents/m3
C20: Rate 6 | Large Volume General Firm Service | E20: 0.2815 | F20: Cents/m3
C21: Rate 11 | Large Volume Seasonal Service | E21: 0.1847 | F21: Cents/m3
C22: Rate 16 | Contracted Firm Service | E22: 0 | F22: Cents/contracted demand m3
C25: Contribution in Aid of Construction Variance Account (CIACVA)
E26: CIACVA Rate Rider
C28: Rate 1 | General Firm Service | E28: 2.3088 | F28: Cents/m3
C29: Rate 6 | Large Volume General Firm Service | E29: 3.0469 | F29: Cents/m3
C30: Rate 11 | Large Volume Seasonal Service | E30: 0.5789 | F30: Cents/m3
C31: Rate 16 | Contracted Firm Service | E31: 4.7092 | F31: Cents/contracted demand m3
C34: Municipal Tax Variance Account (MTVA)
E35: MTVA Rate Rider
C37: Rate 1 | General Firm Service | E37: 0.50516 | F37: Cents/m3
C38: Rate 6 | Large Volume General Firm Service | E38: 0.86511 | F38: Cents/m3
C39: Rate 11 | Large Volume Seasonal Service | E39: 0.16479 | F39: Cents/m3
C40: Rate 16 | Contracted Firm Service | E40: 1.23968 | F40: Cents/contracted demand m3
C43: Other Revenue Deferral Account (ORDA)
E44: ORDA Rate Rider
C46: Rate 1 | General Firm Service | E46: -0.2738 | F46: Cents/m3
C47: Rate 6 | Large Volume General Firm Service | E47: -0.2291 | F47: Cents/m3
C48: Rate 11 | Large Volume Seasonal Service | E48: -0.087 | F48: Cents/m3
C49: Rate 16 | Contracted Firm Service | E49: -0.1547 | F49: Cents/contracted demand m3/month
C52: Customer Volume Variance Account (CVVA)
E53: CVVA Rate Rider
C55: Rate 1 | General Firm Service | E55: 5.37 | F55: $/Month
C56: Rate 6 | Large Volume General Firm Service | E56: -43.46 | F56: $/Month

Sheet C1.2 - PCA
A1: ='C1.1 Current Rate Riders'!C2 -> EPCOR Natural Gas Limited Partnership
A2: ='C1.1 Current Rate Riders'!C3 -> OEB Application Number: EB-2025-0178 Exhibit A - 2026 Custom Incentive Application
A4: 2026 OEB Inflation Factor | H4: 0.037
A6: Incentive Rate Adjustment (IR) = [(1.0 – 0.314) x 0.0127] + [0.314 x Inflation (I)]
D8: 1 | E8: -0.314 | F8: 0.0127 | G8: + | H8: 0.314
E9: =D8+E8 -> 0.686 | F9: =F8 -> 0.0127 | H9: =H8*H4 -> 0.011618
F10: =E9*F9 -> 0.0087122 | H10: =H9 -> 0.011618
A12: 2026 PCA Used in Application | H12: =F10+H10 -> 0.0203302

Sheet D1.1 Rate 1 Adjustment
C2: ='A1.1 Distributor Information'!C3 -> EPCOR Natural Gas Limited Partnership
C3: ='A1.1 Distributor Information'!C4 -> OEB Application Number: EB-2025-0178 Exhibit A - 2026 Custom Incentive Application
C5: Rate 1 Incentive Rate Adjustment
C6: =MID(CELL("filename",A1),FIND("]",CELL("filename",A1))+1,255) -> D1.1 Rate 1 Adjustment
C8: Rate 1
C10: GDP-IPI
C11: Less Productivity
C12: Less Stretch Factor
C13: Incentive Rate Adjustment | E13: ='C1.2 - PCA'!H12 -> 0.0203302
C14: Months / Year | E14: 12
D16: Unit | E16: Current Rate | F16: Price Cap | G16: Adjusted Rates | H16: Billing Determinants | I16: Revenue
C17: Monthly Base | D17: $/month | E17: ='B1.1 Current Distribution Rates'!E10 -> 27.99748422 | F17: =$E$13 -> 0.0203302 | G17: =E17*(1+F17) -> 28.56667867 | H17: =INDEX('B1.2 Billing Determinants'!$E$9:$J$12,MATCH($C$8,'B1.2 Billing Determinants'!$C$9:$C$12,0),MATCH(C17,'B1.2 Billing Determinants'!$E$8:$J$8,0)) -> 5572 | I17: =G17*H17*$E$14 -> 1910082.403
C18: =OneDollar -> Bill 32 Rate | D18: $/month | E18: ='B1.1 Current Distribution Rates'!F10 -> 1 | F18: 0 | G18: =E18*(1+F18) -> 1 | H18: =H17 -> 5572 | I18: =G18*H18*$E$14 -> 66864
C19: Tier 1 | D19: cents / m3 | E19: ='B1.1 Current Distribution Rates'!G10 -> 29.99208306 | F19: =$E$13 -> 0.0203302 | G19: =E19*(1+F19) -> 30.6018281 | H19: =INDEX('B1.2 Billing Determinants'!$E$9:$J$12,MATCH($C$8,'B1.2 Billing Determinants'!$C$9:$C$12,0),MATCH(C19,'B1.2 Billing Determinants'!$E$8:$J$8,0)) -> 5233468.522 | I19: =G19*H19/100 -> 1601537.041
C20: Tier 2 | D20: cents / m3 | E20: ='B1.1 Current Distribution Rates'!H10 -> 29.40122231 | F20: =$E$13 -> 0.0203302 | G20: 29.99895504 | H20: =INDEX('B1.2 Billing Determinants'!$E$9:$J$12,MATCH($C$8,'B1.2 Billing Determinants'!$C$9:$C$12,0),MATCH(C20,'B1.2 Billing Determinants'!$E$8:$J$8,0)) -> 3538634.795 | I20: =G20*H20/100 -> 1061553.461
C21: Tier 3 | D21: cents / m3 | E21: ='B1.1 Current Distribution Rates'!I10 -> 28.5327886 | F21: =$E$13 -> 0.0203302 | G21: 29.1128659 | H21: =INDEX('B1.2 Billing Determinants'!$E$9:$J$12,MATCH($C$8,'B1.2 Billing Determinants'!$C$9:$C$12,0),MATCH(C21,'B1.2 Billing Determinants'!$E$8:$J$8,0)) -> 95603.55758 | I21: 27832.93551
C22: Contract Demand | D22: cents / m3 | E22: ='B1.1 Current Distribution Rates'!J10 -> 0 | F22: =$E$13 -> 0.0203302 | G22: 0 | H22: =INDEX('B1.2 Billing Determinants'!$E$9:$J$12,MATCH($C$8,'B1.2 Billing Determinants'!$C$9:$C$12,0),MATCH(C22,'B1.2 Billing Determinants'!$E$8:$J$8,0)) -> 0 | I22: =G22*H22/100*$E$14 -> 0
C23: Gas Supply | D23: cents / m3 | E23: ='B1.1 Current Distribution Rates'!K10 -> 18.8887 | F23: 0 | G23: 18.8887 | H23: =INDEX('B1.2 Billing Determinants'!$E$9:$J$12,MATCH($C$8,'B1.2 Billing Determinants'!$C$9:$C$12,0),MATCH(C23,'B1.2 Billing Determinants'!$E$8:$J$8,0)) -> 8270620 | I23: 1562212.6
C24: Upstream Recovery Charge | D24: cents / m3 | E24: ='B1.1 Current Distribution Rates'!L10 -> 1.474 | F24: 0 | G24: 1.474 | H24: =H23 -> 8270620 | I24: 121908.9388
C25: Transportation & Storage Charge | D25: cents / m3 | E25: ='B1.1 Current Distribution Rates'!M10 -> 2.6982 | F25: 0 | G25: 2.6982 | H25: =H24 -> 8270620 | I25: 223157.8688
C26: Federal Carbon Charge | D26: cents / m3 | E26: ='B1.1 Current Distribution Rates'!Q10 -> 0 | F26: 0 | G26: 0 | H26: =H25 -> 8270620 | I26: =G26*H26/100 -> 0
I27: =SUM(I17:I26) -> 6575149.248

Sheet D1.2 Rate 6 Adjustment
C2: ='A1.1 Distributor Information'!C3 -> EPCOR Natural Gas Limited Partnership
C3: ='A1.1 Distributor Information'!C4 -> OEB Application Number: EB-2025-0178 Exhibit A - 2026 Custom Incentive Application
C5: Rate 6 Incentive Rate Adjustment
C6: =MID(CELL("filename",A1),FIND("]",CELL("filename",A1))+1,255) -> D1.2 Rate 6 Adjustment
C8: Rate 6
C10: GDP-IPI
C11: Less Productivity
C12: Less Stretch Factor
C13: Incentive Rate Adjustment | E13: ='D1.1 Rate 1 Adjustment'!E13 -> 0.0203302
C14: Months / Year | E14: 12
D16: Unit | E16: Current Rate | F16: Price Cap | G16: Adjusted Rates | H16: Billing Determinants | I16: Revenue
C17: Monthly Base | D17: $/month | E17: ='B1.1 Current Distribution Rates'!E11 -> 114.1725084 | F17: =$E$13 -> 0.0203302 | G17: =E17*(1+F17) -> 116.4936583 | H17: =INDEX('B1.2 Billing Determinants'!$E$9:$J$12,MATCH($C$8,'B1.2 Billing Determinants'!$C$9:$C$12,0),MATCH(C17,'B1.2 Billing Determinants'!$E$8:$J$8,0)) -> 72 | I17: =G17*H17*12 -> 100650.5208
C18: =OneDollar -> Bill 32 Rate | D18: $/month | E18: ='B1.1 Current Distribution Rates'!F11 -> 1 | F18: 0 | G18: =E18*(1+F18) -> 1 | H18: =H17 -> 72 | I18: =G18*H18*12 -> 864
C19: Tier 1 | D19: cents / m3 | E19: ='B1.1 Current Distribution Rates'!G11 -> 27.66842763 | F19: =$E$13 -> 0.0203302 | G19: =E19*(1+F19) -> 28.23093229 | H19: =INDEX('B1.2 Billing Determinants'!$E$9:$J$12,MATCH($C$8,'B1.2 Billing Determinants'!$C$9:$C$12,0),MATCH(C19,'B1.2 Billing Determinants'!$E$8:$J$8,0)) -> 607189.8303 | I19: =G19*H19/100 -> 171415.3499
C20: Tier 2 | D20: cents / m3 | E20: ='B1.1 Current Distribution Rates'!H11 -> 24.90167885 | F20: =$E$13 -> 0.0203302 | G20: 25.40793496 | H20: =INDEX('B1.2 Billing Determinants'!$E$9:$J$12,MATCH($C$8,'B1.2 Billing Determinants'!$C$9:$C$12,0),MATCH(C20,'B1.2 Billing Determinants'!$E$8:$J$8,0)) -> 1243388.921 | I20: =G20*H20/100 -> 315919.4484
C21: Tier 3 | D21: cents / m3 | E21: ='B1.1 Current Distribution Rates'!I11 -> 23.65635994 | F21: =$E$13 -> 0.0203302 | G21: 24.13729847 | H21: =INDEX('B1.2 Billing Determinants'!$E$9:$J$12,MATCH($C$8,'B1.2 Billing Determinants'!$C$9:$C$12,0),MATCH(C21,'B1.2 Billing Determinants'!$E$8:$J$8,0)) -> 617622.2368 | I21: 149077.3227
C22: Contract Demand | D22: cents / m3 | E22: ='B1.1 Current Distribution Rates'!J11 -> 0 | F22: =$E$13 -> 0.0203302 | G22: 0 | H22: =INDEX('B1.2 Billing Determinants'!$E$9:$J$12,MATCH($C$8,'B1.2 Billing Determinants'!$C$9:$C$12,0),MATCH(C22,'B1.2 Billing Determinants'!$E$8:$J$8,0)) -> 0 | I22: =G22*H22/100*12 -> 0
C23: Gas Supply | D23: cents / m3 | E23: ='B1.1 Current Distribution Rates'!K11 -> 18.8887 | F23: 0 | G23: 18.8887 | H23: =INDEX('B1.2 Billing Determinants'!$E$9:$J$12,MATCH($C$8,'B1.2 Billing Determinants'!$C$9:$C$12,0),MATCH(C23,'B1.2 Billing Determinants'!$E$8:$J$8,0)) -> 2228157 | I23: 420869.8913
C24: Upstream Recovery Charge | D24: cents / m3 | E24: =INDEX('B1.1 Current Distribution Rates'!$E$10:$Q$13,MATCH($C$8,'B1.1 Current Distribution Rates'!$C$10:$C$13,0),MATCH(C24,'B1.1 Current Distribution Rates'!$E$8:$Q$8,0)) -> 2.92 | F24: 0 | G24: 2.92 | H24: =H23 -> 2228157 | I24: 65062.1844
C25: Transportation & Storage Charge | D25: cents / m3 | E25: =INDEX('B1.1 Current Distribution Rates'!$E$10:$Q$13,MATCH($C$8,'B1.1 Current Distribution Rates'!$C$10:$C$13,0),MATCH(C25,'B1.1 Current Distribution Rates'!$E$8:$Q$8,0)) -> 5.6413 | F25: ='D1.1 Rate 1 Adjustment'!$F$25 -> 0 | G25: 5.6413 | H25: =H24 -> 2228157 | I25: 125697.0208
C26: Federal Carbon Charge | D26: cents / m3 | F26: 0 | G26: 0 | H26: =H25 -> 2228157 | I26: 0
I27: =SUM(I17:I26) -> 1349555.738

Sheet D1.3 Rate 11 Adjustment
C2: ='A1.1 Distributor Information'!C3 -> EPCOR Natural Gas Limited Partnership
C3: ='A1.1 Distributor Information'!C4 -> OEB Application Number: EB-2025-0178 Exhibit A - 2026 Custom Incentive Application
C5: Rate 11 Incentive Rate Adjustment
C6: =MID(CELL("filename",A1),FIND("]",CELL("filename",A1))+1,255) -> D1.3 Rate 11 Adjustment
C8: Rate 11
C10: GDP-IPI
C11: Less Productivity
C12: Less Stretch Factor
C13: Incentive Rate Adjustment | E13: ='D1.1 Rate 1 Adjustment'!E13 -> 0.0203302
C14: Months / Year | E14: 12
D16: Unit | E16: Current Rate | F16: Price Cap | G16: Adjusted Rates | H16: Billing Determinants | I16: Revenue
C17: Monthly Base | D17: $/month | E17: =INDEX('B1.1 Current Distribution Rates'!$E$10:$Q$13,MATCH($C$8,'B1.1 Current Distribution Rates'!$C$10:$C$13,0),MATCH(C17,'B1.1 Current Distribution Rates'!$E$8:$Q$8,0)) -> 228.3450168 | F17: =$E$13 -> 0.0203302 | G17: =E17*(1+F17) -> 232.9873166 | H17: =INDEX('B1.2 Billing Determinants'!$E$9:$J$12,MATCH($C$8,'B1.2 Billing Determinants'!$C$9:$C$12,0),MATCH(C17,'B1.2 Billing Determinants'!$E$8:$J$8,0)) -> 10 | I17: =G17*H17*12 -> 27958.47799
C18: =OneDollar -> Bill 32 Rate | D18: $/month | E18: =INDEX('B1.1 Current Distribution Rates'!$E$10:$Q$13,MATCH($C$8,'B1.1 Current Distribution Rates'!$C$10:$C$13,0),MATCH(C18,'B1.1 Current Distribution Rates'!$E$8:$Q$8,0)) -> 1 | F18: 0 | G18: =E18*(1+F18) -> 1 | H18: =H17 -> 10 | I18: =G18*H18*12 -> 120
C19: Tier 1 | D19: cents / m3 | E19: =INDEX('B1.1 Current Distribution Rates'!$E$10:$Q$13,MATCH($C$8,'B1.1 Current Distribution Rates'!$C$10:$C$13,0),MATCH(C19,'B1.1 Current Distribution Rates'!$E$8:$Q$8,0)) -> 17.18675851 | F19: =$E$13 -> 0.0203302 | G19: 17.53616875 | H19: =INDEX('B1.2 Billing Determinants'!$E$9:$J$12,MATCH($C$8,'B1.2 Billing Determinants'!$C$9:$C$12,0),MATCH(C19,'B1.2 Billing Determinants'!$E$8:$J$8,0)) -> 0 | I19: =G19*H19/100 -> 0
C20: Tier 2 | D20: cents / m3 | E20: =INDEX('B1.1 Current Distribution Rates'!$E$10:$Q$13,MATCH($C$8,'B1.1 Current Distribution Rates'!$C$10:$C$13,0),MATCH(C20,'B1.1 Current Distribution Rates'!$E$8:$Q$8,0)) -> 17.18675851 | F20: =$E$13 -> 0.0203302 | G20: 17.53616875 | H20: =INDEX('B1.2 Billing Determinants'!$E$9:$J$12,MATCH($C$8,'B1.2 Billing Determinants'!$C$9:$C$12,0),MATCH(C20,'B1.2 Billing Determinants'!$E$8:$J$8,0)) -> 0 | I20: =G20*H20/100 -> 0
C21: Tier 3 | D21: cents / m3 | E21: =INDEX('B1.1 Current Distribution Rates'!$E$10:$Q$13,MATCH($C$8,'B1.1 Current Distribution Rates'!$C$10:$C$13,0),MATCH(C21,'B1.1 Current Distribution Rates'!$E$8:$Q$8,0)) -> 17.18675851 | F21: =$E$13 -> 0.0203302 | G21: 17.53616875 | H21: =INDEX('B1.2 Billing Determinants'!$E$9:$J$12,MATCH($C$8,'B1.2 Billing Determinants'!$C$9:$C$12,0),MATCH(C21,'B1.2 Billing Determinants'!$E$8:$J$8,0)) -> 1826281.466 | I21: 320259.7997
C22: Contract Demand | D22: cents / m3 | E22: =INDEX('B1.1 Current Distribution Rates'!$E$10:$Q$13,MATCH($C$8,'B1.1 Current Distribution Rates'!$C$10:$C$13,0),MATCH(C22,'B1.1 Current Distribution Rates'!$E$8:$Q$8,0)) -> 0 | F22: =$E$13 -> 0.0203302 | G22: 0 | H22: =INDEX('B1.2 Billing Determinants'!$E$9:$J$12,MATCH($C$8,'B1.2 Billing Determinants'!$C$9:$C$12,0),MATCH(C22,'B1.2 Billing Determinants'!$E$8:$J$8,0)) -> 0 | I22: =G22*H22/100*12 -> 0
C23: Gas Supply | D23: cents / m3 | E23: =INDEX('B1.1 Current Distribution Rates'!$E$10:$Q$13,MATCH($C$8,'B1.1 Current Distribution Rates'!$C$10:$C$13,0),MATCH(C23,'B1.1 Current Distribution Rates'!$E$8:$Q$8,0)) -> 18.8887 | F23: 0 | G23: 18.8887 | H23: =INDEX('B1.2 Billing Determinants'!$E$9:$J$12,MATCH($C$8,'B1.2 Billing Determinants'!$C$9:$C$12,0),MATCH(C23,'B1.2 Billing Determinants'!$E$8:$J$8,0)) -> 1431902 | I23: 270467.6731
C24: Upstream Recovery Charge | D24: cents / m3 | E24: =INDEX('B1.1 Current Distribution Rates'!$E$10:$Q$13,MATCH($C$8,'B1.1 Current Distribution Rates'!$C$10:$C$13,0),MATCH(C24,'B1.1 Current Distribution Rates'!$E$8:$Q$8,0)) -> 0.0352 | F24: 0 | G24: 0.0352 | H24: =H23 -> 1431902 | I24: 504.029504
C25: Transportation & Storage Charge | D25: cents / m3 | E25: =INDEX('B1.1 Current Distribution Rates'!$E$10:$Q$13,MATCH($C$8,'B1.1 Current Distribution Rates'!$C$10:$C$13,0),MATCH(C25,'B1.1 Current Distribution Rates'!$E$8:$Q$8,0)) -> 1.8166 | F25: ='D1.1 Rate 1 Adjustment'!$F$25 -> 0 | G25: 1.8166 | H25: =H24 -> 1431902 | I25: 26011.93173
C26: Federal Carbon Charge | D26: cents / m3 | F26: 0 | G26: 0 | H26: =H25 -> 1431902 | I26: 0
I27: =SUM(I17:I26) -> 645321.912

Sheet D1.4 Rate 16 Adjustment
C2: ='A1.1 Distributor Information'!C3 -> EPCOR Natural Gas Limited Partnership
C3: ='A1.1 Distributor Information'!C4 -> OEB Application Number: EB-2025-0178 Exhibit A - 2026 Custom Incentive Application
C5: Rate 16 Incentive Rate Adjustment
C6: =MID(CELL("filename",A1),FIND("]",CELL("filename",A1))+1,255) -> D1.4 Rate 16 Adjustment
C8: Rate 16
C10: GDP-IPI
C11: Less Productivity
C12: Less Stretch Factor
C13: Incentive Rate Adjustment | E13: ='D1.1 Rate 1 Adjustment'!E13 -> 0.0203302
C14: Months / Year | E14: 12
D16: Unit | E16: Current Rate | F16: Price Cap | G16: Adjusted Rates | H16: Billing Determinants | I16: Revenue
C17: Monthly Base | D17: $/month | E17: =INDEX('B1.1 Current Distribution Rates'!$E$10:$Q$13,MATCH($C$8,'B1.1 Current Distribution Rates'!$C$10:$C$13,0),MATCH(C17,'B1.1 Current Distribution Rates'!$E$8:$Q$8,0)) -> 1678.98229 | F17: =$E$13 -> 0.0203302 | G17: =E17*(1+F17) -> 1713.116336 | H17: =INDEX('B1.2 Billing Determinants'!$E$9:$J$12,MATCH($C$8,'B1.2 Billing Determinants'!$C$9:$C$12,0),MATCH(C17,'B1.2 Billing Determinants'!$E$8:$J$8,0)) -> 3 | I17: =G17*H17*$E$14 -> 61672.1881
C18: =OneDollar -> Bill 32 Rate | D18: $/month | E18: =INDEX('B1.1 Current Distribution Rates'!$E$10:$Q$13,MATCH($C$8,'B1.1 Current Distribution Rates'!$C$10:$C$13,0),MATCH(C18,'B1.1 Current Distribution Rates'!$E$8:$Q$8,0)) -> 1 | F18: 0 | G18: =E18*(1+F18) -> 1 | H18: =H17 -> 3 | I18: =G18*H18*$E$14 -> 36
C19: Tier 1 | D19: cents / m3 | E19: =INDEX('B1.1 Current Distribution Rates'!$E$10:$Q$13,MATCH($C$8,'B1.1 Current Distribution Rates'!$C$10:$C$13,0),MATCH(C19,'B1.1 Current Distribution Rates'!$E$8:$Q$8,0)) -> 0 | F19: 0.0203302 | G19: 0 | H19: =INDEX('B1.2 Billing Determinants'!$E$9:$J$12,MATCH($C$8,'B1.2 Billing Determinants'!$C$9:$C$12,0),MATCH(C19,'B1.2 Billing Determinants'!$E$8:$J$8,0)) -> 0 | I19: =G19*H19/100 -> 0
C20: Tier 2 | D20: cents / m3 | E20: =INDEX('B1.1 Current Distribution Rates'!$E$10:$Q$13,MATCH($C$8,'B1.1 Current Distribution Rates'!$C$10:$C$13,0),MATCH(C20,'B1.1 Current Distribution Rates'!$E$8:$Q$8,0)) -> 0 | F20: 0.0203302 | G20: 0 | H20: =INDEX('B1.2 Billing Determinants'!$E$9:$J$12,MATCH($C$8,'B1.2 Billing Determinants'!$C$9:$C$12,0),MATCH(C20,'B1.2 Billing Determinants'!$E$8:$J$8,0)) -> 0 | I20: =G20*H20/100 -> 0
C21: Tier 3 | D21: cents / m3 | E21: =INDEX('B1.1 Current Distribution Rates'!$E$10:$Q$13,MATCH($C$8,'B1.1 Current Distribution Rates'!$C$10:$C$13,0),MATCH(C21,'B1.1 Current Distribution Rates'!$E$8:$Q$8,0)) -> 0 | F21: 0.0203302 | G21: 0 | H21: =INDEX('B1.2 Billing Determinants'!$E$9:$J$12,MATCH($C$8,'B1.2 Billing Determinants'!$C$9:$C$12,0),MATCH(C21,'B1.2 Billing Determinants'!$E$8:$J$8,0)) -> 0 | I21: =G21*H21/100 -> 0
C22: Contract Demand | D22: Cents/contracted demand m3 | E22: =INDEX('B1.1 Current Distribution Rates'!$E$10:$Q$13,MATCH($C$8,'B1.1 Current Distribution Rates'!$C$10:$C$13,0),MATCH(C22,'B1.1 Current Distribution Rates'!$E$8:$Q$8,0)) -> 114.5223464 | F22: 0.0203302 | G22: 116.8506086 | H22: =INDEX('B1.2 Billing Determinants'!$E$9:$J$12,MATCH($C$8,'B1.2 Billing Determinants'!$C$9:$C$12,0),MATCH(C22,'B1.2 Billing Determinants'!$E$8:$J$8,0)) -> 95824 | I22: =G22*H22/100*$E$14 -> 1343651.126
C23: Gas Supply | D23: cents / m3 | E23: =INDEX('B1.1 Current Distribution Rates'!$E$10:$Q$13,MATCH($C$8,'B1.1 Current Distribution Rates'!$C$10:$C$13,0),MATCH(C23,'B1.1 Current Distribution Rates'!$E$8:$Q$8,0)) -> 0 | F23: 0 | G23: 0 | H23: =INDEX('B1.2 Billing Determinants'!$E$9:$J$12,MATCH($C$8,'B1.2 Billing Determinants'!$C$9:$C$12,0),MATCH(C23,'B1.2 Billing Determinants'!$E$8:$J$8,0)) -> 0 | I23: =G23*H23/100 -> 0
C24: Upstream Recovery Charge | D24: Cents/contracted demand m3 | E24: =INDEX('B1.1 Current Distribution Rates'!$E$10:$Q$13,MATCH($C$8,'B1.1 Current Distribution Rates'!$C$10:$C$13,0),MATCH(C24,'B1.1 Current Distribution Rates'!$E$8:$Q$8,0)) -> 14.2434 | F24: 0 | G24: 14.2434 | H24: =H22 -> 95824 | I24: =G24*H24/100*$E$14 -> 163783.1474
C25: Transportation Charge From Dawn | D25: Cents/contracted demand m3 | E25: =INDEX('B1.1 Current Distribution Rates'!$E$10:$Q$13,MATCH($C$8,'B1.1 Current Distribution Rates'!$C$10:$C$13,0),MATCH(C25,'B1.1 Current Distribution Rates'!$E$8:$Q$8,0)) -> 18.2999 | F25: ='D1.1 Rate 1 Adjustment'!$F$25 -> 0 | G25: 18.2999 | H25: =H24 -> 95824 | I25: =G25*H25/100*$E$14 -> 210428.3541
C26: Transportation Charge From Kirkwall | D26: Cents/contracted demand m3 | E26: =INDEX('B1.1 Current Distribution Rates'!$E$10:$Q$13,MATCH($C$8,'B1.1 Current Distribution Rates'!$C$10:$C$13,0),MATCH(C26,'B1.1 Current Distribution Rates'!$E$8:$Q$8,0)) -> 11.848 | F26: ='D1.1 Rate 1 Adjustment'!$F$25 -> 0 | G26: 11.848 | H26: 0 | I26: =G26*H26/100*$E$14 -> 0
C27: Transportation Charge From Parkway | D27: Cents/contracted demand m3 | E27: =INDEX('B1.1 Current Distribution Rates'!$E$10:$Q$13,MATCH($C$8,'B1.1 Current Distribution Rates'!$C$10:$C$13,0),MATCH(C27,'B1.1 Current Distribution Rates'!$E$8:$Q$8,0)) -> 11.848 | F27: ='D1.1 Rate 1 Adjustment'!$F$25 -> 0 | G27: 11.848 | H27: 0 | I27: =G27*H27/100*$E$14 -> 0
C28: Federal Carbon Charge | D28: Cents/contracted demand m3 | F28: 0 | G28: 0 | H28: =H25 -> 95824 | I28: =G28*H28/100*$E$14 -> 0
I29: =SUM(I17:I28) -> 1779570.816

Sheet E1.1 Proposed Dist Rates
C2: ='A1.1 Distributor Information'!C3 -> EPCOR Natural Gas Limited Partnership
C3: ='A1.1 Distributor Information'!C4 -> OEB Application Number: EB-2025-0178 Exhibit A - 2026 Custom Incentive Application
C5: Proposed Distribution Tariff Sheet Rates
C6: =MID(CELL("filename",A1),FIND("]",CELL("filename",A1))+1,255) -> E1.1 Proposed Dist Rates
C8: Rate Class | E8: Monthly Base | F8: =OneDollar -> Bill 32 Rate | G8: Tier 1 | H8: Tier 2 | I8: Tier 3 | J8: Contract Demand | K8: Gas Supply | L8: Upstream Recovery Charge | M8: Transportation & Storage Charge | N8: Transportation Charge From Dawn | O8: Transportation Charge From Kirkwall | P8: Transportation Charge From Parkway | Q8: Federal Carbon Charge | R8: Facililty Carbon Charge
E9: $/month | F9: $/month | G9: ₵ / m3 | H9: ₵ / m3 | I9: ₵ / m3 | J9: ₵/contracted m3 | K9: ₵/m3 | L9: (A) | M9: ₵ / m3 | N9: ₵ /contracted m3 | O9: ₵ /contracted m3 | P9: ₵ /contracted m3 | Q9: ₵ / m3 | R9: ₵ / m3
C10: Rate 1 | D10: General Firm Service | E10: =INDEX('D1.1 Rate 1 Adjustment'!$G$17:$G$26,MATCH(E$8,'D1.1 Rate 1 Adjustment'!$C$17:$C$26,0)) -> 28.56667867 | F10: =INDEX('D1.1 Rate 1 Adjustment'!$G$17:$G$26,MATCH(F$8,'D1.1 Rate 1 Adjustment'!$C$17:$C$26,0)) -> 1 | G10: =INDEX('D1.1 Rate 1 Adjustment'!$G$17:$G$26,MATCH(G$8,'D1.1 Rate 1 Adjustment'!$C$17:$C$26,0)) -> 30.6018281 | H10: =INDEX('D1.1 Rate 1 Adjustment'!$G$17:$G$26,MATCH(H$8,'D1.1 Rate 1 Adjustment'!$C$17:$C$26,0)) -> 29.99895504 | I10: =INDEX('D1.1 Rate 1 Adjustment'!$G$17:$G$26,MATCH(I$8,'D1.1 Rate 1 Adjustment'!$C$17:$C$26,0)) -> 29.1128659 | K10: =INDEX('D1.1 Rate 1 Adjustment'!$G$17:$G$26,MATCH(K$8,'D1.1 Rate 1 Adjustment'!$C$17:$C$26,0)) -> 18.8887 | L10: =INDEX('D1.1 Rate 1 Adjustment'!$G$17:$G$26,MATCH(L$8,'D1.1 Rate 1 Adjustment'!$C$17:$C$26,0)) -> 1.474 | M10: =INDEX('D1.1 Rate 1 Adjustment'!$G$17:$G$26,MATCH(M$8,'D1.1 Rate 1 Adjustment'!$C$17:$C$26,0)) -> 2.6982 | Q10: =INDEX('D1.1 Rate 1 Adjustment'!$G$17:$G$26,MATCH(Q$8,'D1.1 Rate 1 Adjustment'!$C$17:$C$26,0)) -> 0
C11: Rate 6 | D11: Large Volume General Firm Service | E11: =INDEX('D1.2 Rate 6 Adjustment'!$G$17:$G$26,MATCH(E8,'D1.2 Rate 6 Adjustment'!$C$17:$C$26,0)) -> 116.4936583 | F11: =INDEX('D1.2 Rate 6 Adjustment'!$G$17:$G$26,MATCH(F8,'D1.2 Rate 6 Adjustment'!$C$17:$C$26,0)) -> 1 | G11: =INDEX('D1.2 Rate 6 Adjustment'!$G$17:$G$26,MATCH(G8,'D1.2 Rate 6 Adjustment'!$C$17:$C$26,0)) -> 28.23093229 | H11: =INDEX('D1.2 Rate 6 Adjustment'!$G$17:$G$26,MATCH(H8,'D1.2 Rate 6 Adjustment'!$C$17:$C$26,0)) -> 25.40793496 | I11: =INDEX('D1.2 Rate 6 Adjustment'!$G$17:$G$26,MATCH(I8,'D1.2 Rate 6 Adjustment'!$C$17:$C$26,0)) -> 24.13729847 | K11: =INDEX('D1.2 Rate 6 Adjustment'!$G$17:$G$26,MATCH(K8,'D1.2 Rate 6 Adjustment'!$C$17:$C$26,0)) -> 18.8887 | L11: =INDEX('D1.2 Rate 6 Adjustment'!$G$17:$G$26,MATCH(L8,'D1.2 Rate 6 Adjustment'!$C$17:$C$26,0)) -> 2.92 | M11: =INDEX('D1.2 Rate 6 Adjustment'!$G$17:$G$26,MATCH(M8,'D1.2 Rate 6 Adjustment'!$C$17:$C$26,0)) -> 5.6413 | Q11: =INDEX('D1.2 Rate 6 Adjustment'!$G$17:$G$26,MATCH(Q8,'D1.2 Rate 6 Adjustment'!$C$17:$C$26,0)) -> 0
C12: Rate 11 | D12: Large Volume Seasonal Service | E12: =INDEX('D1.3 Rate 11 Adjustment'!$G$17:$G$26,MATCH(E8,'D1.3 Rate 11 Adjustment'!$C$17:$C$26,0)) -> 232.9873166 | F12: =INDEX('D1.3 Rate 11 Adjustment'!$G$17:$G$26,MATCH(F8,'D1.3 Rate 11 Adjustment'!$C$17:$C$26,0)) -> 1 | G12: =INDEX('D1.3 Rate 11 Adjustment'!$G$17:$G$26,MATCH(G8,'D1.3 Rate 11 Adjustment'!$C$17:$C$26,0)) -> 17.53616875 | H12: =INDEX('D1.3 Rate 11 Adjustment'!$G$17:$G$26,MATCH(H8,'D1.3 Rate 11 Adjustment'!$C$17:$C$26,0)) -> 17.53616875 | I12: =INDEX('D1.3 Rate 11 Adjustment'!$G$17:$G$26,MATCH(I8,'D1.3 Rate 11 Adjustment'!$C$17:$C$26,0)) -> 17.53616875 | K12: =INDEX('D1.3 Rate 11 Adjustment'!$G$17:$G$26,MATCH(K8,'D1.3 Rate 11 Adjustment'!$C$17:$C$26,0)) -> 18.8887 | L12: =INDEX('D1.3 Rate 11 Adjustment'!$G$17:$G$26,MATCH(L8,'D1.3 Rate 11 Adjustment'!$C$17:$C$26,0)) -> 0.0352 | M12: =INDEX('D1.3 Rate 11 Adjustment'!$G$17:$G$26,MATCH(M8,'D1.3 Rate 11 Adjustment'!$C$17:$C$26,0)) -> 1.8166 | Q12: =INDEX('D1.3 Rate 11 Adjustment'!$G$17:$G$26,MATCH(Q8,'D1.3 Rate 11 Adjustment'!$C$17:$C$26,0)) -> 0
C13: Rate 16 | D13: Contracted Firm Service | E13: =INDEX('D1.4 Rate 16 Adjustment'!$G$17:$G$28,MATCH(E8,'D1.4 Rate 16 Adjustment'!$C$17:$C$28,0)) -> 1713.116336 | F13: =INDEX('D1.4 Rate 16 Adjustment'!$G$17:$G$28,MATCH(F8,'D1.4 Rate 16 Adjustment'!$C$17:$C$28,0)) -> 1 | J13: =INDEX('D1.4 Rate 16 Adjustment'!$G$17:$G$28,MATCH(J8,'D1.4 Rate 16 Adjustment'!$C$17:$C$28,0)) -> 116.8506086 | L13: =INDEX('D1.4 Rate 16 Adjustment'!$G$17:$G$28,MATCH(L8,'D1.4 Rate 16 Adjustment'!$C$17:$C$28,0)) -> 14.2434 | N13: ='D1.4 Rate 16 Adjustment'!G25 -> 18.2999 | O13: =INDEX('D1.4 Rate 16 Adjustment'!$G$17:$G$28,MATCH(O8,'D1.4 Rate 16 Adjustment'!$C$17:$C$28,0)) -> 11.848 | P13: =INDEX('D1.4 Rate 16 Adjustment'!$G$17:$G$28,MATCH(P8,'D1.4 Rate 16 Adjustment'!$C$17:$C$28,0)) -> 11.848 | Q13: =INDEX('D1.4 Rate 16 Adjustment'!$G$17:$G$28,MATCH(Q8,'D1.4 Rate 16 Adjustment'!$C$17:$C$28,0)) -> 0
C14: (A) Rates 1, 6, and 11 all charged on cents / m3 basis. Rate 16 billed on cents / m3 of contracted demand basis

Sheet E1.2 Billing Determinants
C2: ='A1.1 Distributor Information'!C3 -> EPCOR Natural Gas Limited Partnership
C3: ='A1.1 Distributor Information'!C4 -> OEB Application Number: EB-2025-0178 Exhibit A - 2026 Custom Incentive Application
C5: Billing Determinants
C6: =MID(CELL("filename",A1),FIND("]",CELL("filename",A1))+1,255) -> E1.2 Billing Determinants
C9: Rate Class | D9: Description | E9: Base | F9: Tier 1 | G9: Tier 2 | H9: Tier 3 | I9: Firm Demand | J9: Gas Supply
E10: cx's | F10: m3 | G10: m3 | H10: m3 | I10: Contracted m3 | J10: m3
C11: Rate 1 | D11: General Firm Service | E11: ='B1.2 Billing Determinants'!E9 -> 5572 | F11: ='B1.2 Billing Determinants'!F9 -> 5233468.522 | G11: ='B1.2 Billing Determinants'!G9 -> 3538634.795 | H11: ='B1.2 Billing Determinants'!H9 -> 95603.55758 | J11: ='B1.2 Billing Determinants'!J9 -> 8270620
C12: Rate 6 | D12: Large Volume General Firm Service | E12: ='B1.2 Billing Determinants'!E10 -> 72 | F12: ='B1.2 Billing Determinants'!F10 -> 607189.8303 | G12: ='B1.2 Billing Determinants'!G10 -> 1243388.921 | H12: ='B1.2 Billing Determinants'!H10 -> 617622.2368 | J12: ='B1.2 Billing Determinants'!J10 -> 2228157
C13: Rate 11 | D13: Large Volume Seasonal Service | E13: ='B1.2 Billing Determinants'!E11 -> 10 | H13: ='B1.2 Billing Determinants'!H11 -> 1826281.466 | J13: ='B1.2 Billing Determinants'!J11 -> 1431902
C14: Rate 16 | D14: Contracted Firm Service | E14: ='B1.2 Billing Determinants'!E12 -> 3 | I14: ='B1.2 Billing Determinants'!I12 -> 95824

Sheet E1.3 Proposed Rev From Rate
C2: ='A1.1 Distributor Information'!C3 -> EPCOR Natural Gas Limited Partnership
C3: ='A1.1 Distributor Information'!C4 -> OEB Application Number: EB-2025-0178 Exhibit A - 2026 Custom Incentive Application
C5: Proposed Revenue from Rates
C7: Months / Year | D7: 12
C9: Rate Class | E9: Monthly Base | F9: =OneDollar -> Bill 32 Rate | G9: Tier 1 | H9: Tier 2 | I9: Tier 3 | J9: Contracted Demand | K9: Gas Supply | L9: Upstream Recovery Charge | M9: Transportation & Storage Charge | N9: Federal Carbon Charge | O9: Total
M10: (A)
C11: Rate 1 | D11: General Firm Service | E11: ='E1.1 Proposed Dist Rates '!E10*'E1.2 Billing Determinants'!E11*$D$7 -> 1910082.403 | G11: ='E1.1 Proposed Dist Rates '!G10*'E1.2 Billing Determinants'!F11/100 -> 1601537.041 | H11: ='E1.1 Proposed Dist Rates '!H10*'E1.2 Billing Determinants'!G11/100 -> 1061553.461 | I11: ='E1.1 Proposed Dist Rates '!I10*'E1.2 Billing Determinants'!H11/100 -> 27832.93551 | J11: ='E1.1 Proposed Dist Rates '!J10*'E1.2 Billing Determinants'!I11/100*$D$7 -> 0 | K11: ='E1.1 Proposed Dist Rates '!K10*'E1.2 Billing Determinants'!J11/100 -> 1562212.6 | L11: ='E1.1 Proposed Dist Rates '!L10*'E1.2 Billing Determinants'!$J11/100 -> 121908.9388 | M11: ='E1.1 Proposed Dist Rates '!M10*'E1.2 Billing Determinants'!$J11/100 -> 223157.8688 | N11: ='E1.1 Proposed Dist Rates '!Q10*'E1.2 Billing Determinants'!J11/100 -> 0 | O11: =SUM(E11:N11) -> 6508285.248
C12: Rate 6 | D12: Large Volume General Firm Service | E12: ='E1.1 Proposed Dist Rates '!E11*'E1.2 Billing Determinants'!E12*$D$7 -> 100650.5208 | G12: ='E1.1 Proposed Dist Rates '!G11*'E1.2 Billing Determinants'!F12/100 -> 171415.3499 | H12: ='E1.1 Proposed Dist Rates '!H11*'E1.2 Billing Determinants'!G12/100 -> 315919.4484 | I12: ='E1.1 Proposed Dist Rates '!I11*'E1.2 Billing Determinants'!H12/100 -> 149077.3227 | J12: ='E1.1 Proposed Dist Rates '!J11*'E1.2 Billing Determinants'!I12/100*$D$7 -> 0 | K12: ='E1.1 Proposed Dist Rates '!K11*'E1.2 Billing Determinants'!J12/100 -> 420869.8913 | L12: ='E1.1 Proposed Dist Rates '!L11*'E1.2 Billing Determinants'!$J12/100 -> 65062.1844 | M12: ='E1.1 Proposed Dist Rates '!M11*'E1.2 Billing Determinants'!$J12/100 -> 125697.0208 | N12: ='E1.1 Proposed Dist Rates '!Q11*'E1.2 Billing Determinants'!J12/100 -> 0 | O12: =SUM(E12:N12) -> 1348691.738
C13: Rate 11 | D13: Large Volume Seasonal Service | E13: ='E1.1 Proposed Dist Rates '!E12*'E1.2 Billing Determinants'!E13*$D$7 -> 27958.47799 | G13: ='E1.1 Proposed Dist Rates '!G12*'E1.2 Billing Determinants'!F13/100 -> 0 | H13: ='E1.1 Proposed Dist Rates '!H12*'E1.2 Billing Determinants'!G13/100 -> 0 | I13: ='E1.1 Proposed Dist Rates '!I12*'E1.2 Billing Determinants'!H13/100 -> 320259.7997 | J13: ='E1.1 Proposed Dist Rates '!J12*'E1.2 Billing Determinants'!I13/100*$D$7 -> 0 | K13: ='E1.1 Proposed Dist Rates '!K12*'E1.2 Billing Determinants'!J13/100 -> 270467.6731 | L13: ='E1.1 Proposed Dist Rates '!L12*'E1.2 Billing Determinants'!$J13/100 -> 504.029504 | M13: ='E1.1 Proposed Dist Rates '!M12*'E1.2 Billing Determinants'!$J13/100 -> 26011.93173 | N13: ='E1.1 Proposed Dist Rates '!Q12*'E1.2 Billing Determinants'!J13/100 -> 0 | O13: =SUM(E13:N13) -> 645201.912
C14: Rate 16 | D14: Contracted Firm Service | E14: ='E1.1 Proposed Dist Rates '!E13*'E1.2 Billing Determinants'!E14*$D$7 -> 61672.1881 | G14: ='E1.1 Proposed Dist Rates '!G13*'E1.2 Billing Determinants'!F14/100 -> 0 | H14: ='E1.1 Proposed Dist Rates '!H13*'E1.2 Billing Determinants'!G14/100 -> 0 | I14: ='E1.1 Proposed Dist Rates '!I13*'E1.2 Billing Determinants'!H14/100 -> 0 | J14: ='E1.1 Proposed Dist Rates '!J13*'E1.2 Billing Determinants'!I14/100*$D$7 -> 1343651.126 | K14: ='E1.1 Proposed Dist Rates '!K13*'E1.2 Billing Determinants'!J14/100 -> 0 | L14: ='E1.1 Proposed Dist Rates '!L13*'E1.2 Billing Determinants'!$I14/100*$D$7 -> 163783.1474 | M14: ='E1.1 Proposed Dist Rates '!N13*'E1.2 Billing Determinants'!$I14/100*$D$7 -> 210428.3541 | N14: ='E1.1 Proposed Dist Rates '!Q13*'E1.2 Billing Determinants'!I14/100*$D$7 -> 0 | O14: =SUM(E14:N14) -> 1779534.816
C15: (A) Transportation & Storage for Rates 1, 6, and 11. Transportation only (no seasonal storage) for Rate 16 from Dawn. | M15: Proposed Revenue | O15: =SUM(O11:O14) -> 10281713.71
M16: Current Revenue | O16: ='B1.3 Current Rev From Rates'!O18 -> 10140412.54
M17: Change | O17: =O15-O16 -> 141301.1701
M18: % Change | O18: =O17/O16 -> 0.01393445971

Sheet F1.3 Proposed Rate Riders
C2: ='A1.1 Distributor Information'!C3 -> EPCOR Natural Gas Limited Partnership
C3: ='A1.1 Distributor Information'!C4 -> OEB Application Number: EB-2025-0178 Exhibit A - 2026 Custom Incentive Application
C4: F1.3 Rate Riders
C6: Delay in Revenue Recovery Rate Rider
E7: Delay in Revenue Recovery Rate Rider
C9: Rate 1 | General Firm Service | E9: 1.633 | F9: Cents/m3
C10: Rate 6 | Large Volume General Firm Service | E10: 0.909 | F10: Cents/m3
C11: Rate 11 | Large Volume Seasonal Service | E11: 0.5524 | F11: Cents/m3
C12: Rate 16 | Contracted Firm Service | E12: 0.0601 | F12: Cents/contracted demand m3/month
C15: Energy Content Variance Account (ECVA)
E16: ECVA Rate Rider
C18: Rate 1 | General Firm Service | E18: 0.1794 | F18: Cents/m3
C19: Rate 6 | Large Volume General Firm Service | E19: 0.1949 | F19: Cents/m3
C20: Rate 11 | Large Volume Seasonal Service | E20: 0.1031 | F20: Cents/m3
C21: Rate 16 | Contracted Firm Service | E21: 0 | F21: Cents/contracted demand m3
C24: Contribution in Aid of Construction Variance Account (CIACVA)
E25: CIACVA Rate Rider
C27: Rate 1 | General Firm Service | E27: 2.074318097 | F27: Cents/m3
C28: Rate 6 | Large Volume General Firm Service | E28: 2.649624611 | F28: Cents/m3
C29: Rate 11 | Large Volume Seasonal Service | E29: 0.43723579 | F29: Cents/m3
C30: Rate 16 | Contracted Firm Service | E30: 4.5364 | F30: Cents/contracted demand m3/month
C33: Municipal Tax Variance Account (MTVA)
E34: MTVA Rate Rider
C36: Rate 1 | General Firm Service | E36: -0.413921987 | F36: Cents/m3
C37: Rate 6 | Large Volume General Firm Service | E37: -0.686125241 | F37: Cents/m3
C38: Rate 11 | Large Volume Seasonal Service | E38: -0.11350957 | F38: Cents/m3
C39: Rate 16 | Contracted Firm Service | E39: -1.0891 | F39: Cents/contracted demand m3/month
C42: Other Revenue Deferral Account (ORDA)
E43: ORDA Rate Rider
C45: Rate 1 | General Firm Service | E45: -0.24784457 | F45: Cents/m3
C46: Rate 6 | Large Volume General Firm Service | E46: -0.200738997 | F46: Cents/m3
C47: Rate 11 | Large Volume Seasonal Service | E47: -0.066199841 | F47: Cents/m3
C48: Rate 16 | Contracted Firm Service | E48: -0.1501 | F48: Cents/contracted demand m3/month
C51: Customer Volume Variance Account (CVVA)
E52: CVVA Rate Rider
C54: Rate 1 | General Firm Service | E54: 8.5344531 | F54: $/Month
C55: Rate 6 | Large Volume General Firm Service | E55: 26.028343 | F55: $/Month
C56: Rate 11 | Large Volume Seasonal Service
C57: Rate 16 | Contracted Firm Service
C60: Unaccounted for Gas Variance Account (UFGVA)
E61: UFG Rate Rider
C63: Rate 1 | General Firm Service | E63: -0.2462766033 | F63: Cents/m3
C64: Rate 6 | Large Volume General Firm Service | E64: -0.2515741408 | F64: Cents/m3
C65: Rate 11 | Large Volume Seasonal Service | E65: -0.1432767068 | F65: Cents/m3
C66: Rate 16 | Contracted Firm Service | E66: -5.2768 | F66: Cents/contracted demand m3/month
C69: Transportation Variance Account (TVA)
E70: TVA Rate Rider
C72: Rate 1 | General Firm Service | E72: 0 | F72: Cents/m3
C73: Rate 6 | Large Volume General Firm Service | E73: 0 | F73: Cents/m3
C74: Rate 11 | Large Volume Seasonal Service | E74: 0 | F74: Cents/m3
C75: Rate 16 | Contracted Firm Service | E75: 4.1246 | F75: Cents/contracted demand m3/month
C78: Storage and Transportation Variance Account (S&TVA)
E79: S&TVA Rate Rider
C81: Rate 1 | General Firm Service | E81: 1.156934794 | F81: Cents/m3
C82: Rate 6 | Large Volume General Firm Service | E82: 1.56593139 | F82: Cents/m3
C83: Rate 11 | Large Volume Seasonal Service | E83: 0.4799464337 | F83: Cents/m3
C84: Rate 16 | Contracted Firm Service | E84: 0 | F84: Cents/contracted demand m3/month

Sheet G1.1 Rate 1 Bill Impact
C2: ='A1.1 Distributor Information'!C3 -> EPCOR Natural Gas Limited Partnership
C3: ='A1.1 Distributor Information'!C4 -> OEB Application Number: EB-2025-0178 Exhibit A - 2026 Custom Incentive Application
C5: Rate 1 Delivery Bill Impact
C6: G1.1 Rate 1 Bill Impact
C8: Rate 1
C10: Rate 1 - Residential | E10: Units | F10: Current Rate | H10: Proposed Rate
C12: Customer | E12: $/month | F12: =INDEX('B1.1 Current Distribution Rates'!$E$10:$Q$13,MATCH($C$8,'B1.1 Current Distribution Rates'!$C$10:$C$13,0),COUNTA('G1.1 Rate 1 Bill Impact'!$C$12:C12)) -> 27.99748422 | H12: =INDEX('E1.1 Proposed Dist Rates '!$E$10:$Q$13,MATCH($C$8,'E1.1 Proposed Dist Rates '!$C$10:$C$13,0),COUNTA($C$12:C12)) -> 28.56667867
C13: =OneDollar -> Bill 32 Rate | E13: $/month | F13: =INDEX('B1.1 Current Distribution Rates'!$E$10:$Q$13,MATCH($C$8,'B1.1 Current Distribution Rates'!$C$10:$C$13,0),COUNTA('G1.1 Rate 1 Bill Impact'!$C$12:C13)) -> 1 | H13: =INDEX('E1.1 Proposed Dist Rates '!$E$10:$Q$13,MATCH($C$8,'E1.1 Proposed Dist Rates '!$C$10:$C$13,0),COUNTA($C$12:C13)) -> 1
C14: First 100 m3 | E14: ₵/m3 | F14: =INDEX('B1.1 Current Distribution Rates'!$E$10:$Q$13,MATCH($C$8,'B1.1 Current Distribution Rates'!$C$10:$C$13,0),COUNTA('G1.1 Rate 1 Bill Impact'!$C$12:C14)) -> 29.99208306 | H14: =INDEX('E1.1 Proposed Dist Rates '!$E$10:$Q$13,MATCH($C$8,'E1.1 Proposed Dist Rates '!$C$10:$C$13,0),COUNTA($C$12:C14)) -> 30.6018281
C15: Next 400 m3 | E15: ₵/m3 | F15: =INDEX('B1.1 Current Distribution Rates'!$E$10:$Q$13,MATCH($C$8,'B1.1 Current Distribution Rates'!$C$10:$C$13,0),COUNTA('G1.1 Rate 1 Bill Impact'!$C$12:C15)) -> 29.40122231 | H15: =INDEX('E1.1 Proposed Dist Rates '!$E$10:$Q$13,MATCH($C$8,'E1.1 Proposed Dist Rates '!$C$10:$C$13,0),COUNTA($C$12:C15)) -> 29.99895504
C16: GT 500m3 | E16: ₵/m3 | F16: =INDEX('B1.1 Current Distribution Rates'!$E$10:$Q$13,MATCH($C$8,'B1.1 Current Distribution Rates'!$C$10:$C$13,0),COUNTA('G1.1 Rate 1 Bill Impact'!$C$12:C16)) -> 28.5327886 | H16: =INDEX('E1.1 Proposed Dist Rates '!$E$10:$Q$13,MATCH($C$8,'E1.1 Proposed Dist Rates '!$C$10:$C$13,0),COUNTA($C$12:C16)) -> 29.1128659
C17: Contracted Demand | E17: ₵ / contracted m3 | F17: =INDEX('B1.1 Current Distribution Rates'!$E$10:$Q$13,MATCH($C$8,'B1.1 Current Distribution Rates'!$C$10:$C$13,0),COUNTA('G1.1 Rate 1 Bill Impact'!$C$12:C17)) -> 0 | H17: =INDEX('E1.1 Proposed Dist Rates '!$E$10:$Q$13,MATCH($C$8,'E1.1 Proposed Dist Rates '!$C$10:$C$13,0),COUNTA($C$12:C17)) -> 0
C18: Gas Supply | E18: ₵/m3 | F18: =INDEX('B1.1 Current Distribution Rates'!$E$10:$Q$13,MATCH($C$8,'B1.1 Current Distribution Rates'!$C$10:$C$13,0),COUNTA('G1.1 Rate 1 Bill Impact'!$C$12:C18)) -> 18.8887 | H18: =INDEX('E1.1 Proposed Dist Rates '!$E$10:$Q$13,MATCH($C$8,'E1.1 Proposed Dist Rates '!$C$10:$C$13,0),COUNTA($C$12:C18)) -> 18.8887
C19: Upstream Recovery Charge | E19: $/m3 | F19: =INDEX('B1.1 Current Distribution Rates'!$E$10:$Q$13,MATCH($C$8,'B1.1 Current Distribution Rates'!$C$10:$C$13,0),COUNTA('G1.1 Rate 1 Bill Impact'!$C$12:C19)) -> 1.474 | H19: =INDEX('E1.1 Proposed Dist Rates '!$E$10:$Q$13,MATCH($C$8,'E1.1 Proposed Dist Rates '!$C$10:$C$13,0),COUNTA($C$12:C19)) -> 1.474
C20: Transportation & Storage Charge | E20: ₵/m3 | F20: =INDEX('B1.1 Current Distribution Rates'!$E$10:$Q$13,MATCH($C$8,'B1.1 Current Distribution Rates'!$C$10:$C$13,0),COUNTA('G1.1 Rate 1 Bill Impact'!$C$12:C20)) -> 2.6982 | H20: =INDEX('E1.1 Proposed Dist Rates '!$E$10:$Q$13,MATCH($C$8,'E1.1 Proposed Dist Rates '!$C$10:$C$13,0),COUNTA($C$12:C20)) -> 2.6982
C21: Federal Carbon Charge | E21: ₵/m3 | F21: ='B1.1 Current Distribution Rates'!Q10 -> 0 | H21: ='E1.1 Proposed Dist Rates '!Q10 -> 0
C23: Rate Riders
C24: Delay in Revenue Recovery Rate Rider | E24: ₵/m3 | F24: ='C1.1 Current Rate Riders'!$E$10 -> 1.633 | H24: ='F1.3 Proposed Rate Riders'!$E$9 -> 1.633
C25: ='F1.3 Proposed Rate Riders'!$E$16 -> ECVA Rate Rider | E25: ₵/m3 | F25: ='C1.1 Current Rate Riders'!$E$19 -> 0.2481 | H25: ='F1.3 Proposed Rate Riders'!$E$18 -> 0.1794
C26: ='F1.3 Proposed Rate Riders'!$E$25 -> CIACVA Rate Rider | E26: ₵/m3 | F26: ='C1.1 Current Rate Riders'!$E$28 -> 2.3088 | H26: ='F1.3 Proposed Rate Riders'!$E$27 -> 2.074318097
C27: ='F1.3 Proposed Rate Riders'!$E$34 -> MTVA Rate Rider | E27: ₵/m3 | F27: ='C1.1 Current Rate Riders'!$E$37 -> 0.50516 | H27: ='F1.3 Proposed Rate Riders'!$E$36 -> -0.413921987
C28: ='F1.3 Proposed Rate Riders'!$E$43 -> ORDA Rate Rider | E28: ₵/m3 | F28: ='C1.1 Current Rate Riders'!$E$46 -> -0.2738 | H28: ='F1.3 Proposed Rate Riders'!$E$45 -> -0.24784457
C29: ='F1.3 Proposed Rate Riders'!$E$52 -> CVVA Rate Rider | E29: $/month | F29: ='C1.1 Current Rate Riders'!E55 -> 5.37 | H29: ='F1.3 Proposed Rate Riders'!$E$54 -> 8.5344531
C30: ='F1.3 Proposed Rate Riders'!E61 -> UFG Rate Rider | E30: =E28 -> ₵/m3 | F30: 0 | H30: ='F1.3 Proposed Rate Riders'!E63 -> -0.2462766033
C31: ='F1.3 Proposed Rate Riders'!E70 -> TVA Rate Rider | E31: =E28 -> ₵/m3 | F31: 0 | H31: ='F1.3 Proposed Rate Riders'!E72 -> 0
C32: ='F1.3 Proposed Rate Riders'!E79 -> S&TVA Rate Rider | E32: =E27 -> ₵/m3 | F32: 0 | H32: ='F1.3 Proposed Rate Riders'!E81 -> 1.156934794
C34: Delivery | E34: Metric | F34: Current Rate | H34: Proposed Rate | J34: Change $ | L34: Change %
C35: Customer | E35: 12 | F35: =F12*$E35 -> 335.9698106 | H35: =H12*$E35 -> 342.8001441 | J35: =H35-F35 -> 6.830333444 | L35: =J35/F35 -> 0.0203302
C36: =OneDollar -> Bill 32 Rate | E36: 12 | F36: =F13*$E36 -> 12 | H36: =H13*$E36 -> 12 | J36: =H36-F36 -> 0 | L36: =J36/F36 -> 0
C37: First 100 m3 | E37: 836.9 | F37: =F14*$E37/100 -> 251.0037431 | H37: =H14*$E37/100 -> 256.1066994 | J37: =H37-F37 -> 5.102956298 | L37: =J37/F37 -> 0.0203302
C38: Next 400 m3 | E38: 587 | F38: 172.585175 | H38: 176.0938661 | J38: 3.508691124 | L38: 0.0203302
C39: GT 500m3 | E39: 0 | F39: 0 | H39: 0 | J39: 0
C40: Contracted Demand | E40: 0 | F40: 0 | H40: 0 | J40: 0
C41: Gas Supply | E41: =SUM(E37:E40) -> 1423.9 | F41: 268.9561993 | H41: 268.9561993 | J41: 0 | L41: 0
C42: Upstream Recovery Charge | E42: =E41 -> 1423.9 | F42: 20.988286 | H42: 20.988286 | J42: 0 | L42: 0
C43: Transportation & Storage Charge | E43: =E42 -> 1423.9 | F43: 38.4196698 | H43: 38.4196698 | J43: 0 | L43: 0
C44: Federal Carbon Charge | E44: =E41 -> 1423.9 | F44: 0 | H44: 0 | J44: 0
C45: Total Delivery | F45: =SUM(F35:F44) -> 1099.922884 | H45: =SUM(H35:H44) -> 1115.364865 | J45: =SUM(J35:J44) -> 15.44198087 | L45: =J45/F45 -> 0.01403914865
C47: Rate Riders | E47: Metric | F47: Current Rate | H47: Proposed Rate | J47: Change $ | L47: Change %
C48: =C24 -> Delay in Revenue Recovery Rate Rider | E48: =E41 -> 1423.9 | F48: =$E48*F24/100 -> 23.252287 | H48: =$E48*H24/100 -> 23.252287 | J48: =H48-F48 -> 0 | L48: =J48/F48 -> 0
C49: ECVA Rate Rider | E49: =E48 -> 1423.9 | F49: =$E49*F25/100 -> 3.5326959 | H49: =$E49*H25/100 -> 2.5544766 | J49: =H49-F49 -> -0.9782193 | L49: =J49/F49 -> -0.276904474
C50: CIACVA Rate Rider | E50: =E48 -> 1423.9 | F50: =$E50*F26/100 -> 32.8750032 | H50: =$E50*H26/100 -> 29.53621538 | J50: =H50-F50 -> -3.338787817 | L50: =J50/F50 -> -0.1015600758
C51: MTVA Rate Rider | E51: =E49 -> 1423.9 | F51: =$E51*F27/100 -> 7.19297324 | H51: =$E51*H27/100 -> -5.893835173 | J51: -13.08680841 | L51: -1.819387891
C52: ORDA Rate Rider | E52: =E50 -> 1423.9 | F52: =$E52*F28/100 -> -3.8986382 | H52: =$E52*H28/100 -> -3.529058832 | J52: =H52-F52 -> 0.3695793678 | L52: =J52/F52 -> -0.09479704164
C53: CVVA Rate Rider | E53: 12 | F53: =$E53*F29 -> 64.44 | H53: =$E53*H29 -> 102.4134372 | J53: 37.9734372 | L53: 0.5892836313
C54: =C30 -> UFG Rate Rider | E54: =E48 -> 1423.9 | F54: =$E54*F30/100 -> 0 | H54: =$E54*H30/100 -> -3.506732555 | J54: -3.506732555
C55: TVA Rate Rider | E55: =E49 -> 1423.9 | F55: 0 | H55: 0 | J55: 0
C56: S&TVA Rate Rider | E56: 1423.9 | F56: 0 | H56: 16.47359454 | J56: 16.47359454
C57: Total Rate Riders | F57: =SUM(F48:F56) -> 127.3943211 | H57: =SUM(H48:H56) -> 161.3003842 | J57: =SUM(J48:J56) -> 33.90606302 | L57: =J57/F57 -> 0.2661505059
C59: Total Bill Impact | F59: =F45+F57 -> 1227.317205 | H59: =H45+H57 -> 1276.665249 | J59: =J45+J57 -> 49.34804389 | L59: =J59/F59 -> 0.04020806006
C62: Rate 1 - New Residential | E62: Units | F62: Current Rate | H62: Proposed Rate
C64: Customer | E64: $/month | F64: =F12 -> 27.99748422 | H64: =H12 -> 28.56667867
C65: =OneDollar -> Bill 32 Rate | E65: $/month | F65: 1 | H65: 1
C66: First 100 m3 | E66: ₵/m3 | F66: 29.99208306 | H66: 30.6018281
C67: Next 400 m3 | E67: ₵/m3 | F67: 29.40122231 | H67: 29.99895504
C68: GT 500m3 | E68: ₵/m3 | F68: 28.5327886 | H68: 29.1128659
C69: Contracted Demand | E69: ₵ / contracted m3 | F69: 0 | H69: 0
C70: Gas Supply | E70: ₵/m3 | F70: 18.8887 | H70: 18.8887
C71: Upstream Recovery Charge | E71: ₵/m3 | F71: 1.474 | H71: 1.474
C72: Transportation & Storage Charge | E72: ₵/m3 | F72: 2.6982 | H72: 2.6982
C73: Federal Carbon Charge | E73: ₵/m3 | F73: 0 | H73: 0
C75: Rate Riders
C76: =C24 -> Delay in Revenue Recovery Rate Rider | E76: =E24 -> ₵/m3 | F76: =F24 -> 1.633 | H76: =H24 -> 1.633
C77: ECVA Rate Rider | E77: =E25 -> ₵/m3 | F77: =F25 -> 0.2481 | H77: 0.1794
C78: CIACVA Rate Rider | E78: ₵/m3 | F78: =F26 -> 2.3088 | H78: 2.074318097
C79: MTVA Rate Rider | E79: ₵/m3 | F79: =F27 -> 0.50516 | H79: -0.413921987
C80: ORDA Rate Rider | E80: ₵/m3 | F80: =F28 -> -0.2738 | H80: -0.24784457
C81: CVVA Rate Rider | E81: $/month | F81: =F29 -> 5.37 | H81: 8.5344531
C82: =C30 -> UFG Rate Rider | E82: ₵/m3 | F82: =F30 -> 0 | H82: =H30 -> -0.2462766033
C83: TVA Rate Rider | E83: ₵/m3 | F83: 0 | H83: 0
C84: S&TVA Rate Rider | E84: ₵/m3 | F84: 0 | H84: 1.156934794
C86: Delivery | E86: Metric | F86: Current Rate | H86: Proposed Rate | J86: Change $ | L86: Change %
C87: Customer | E87: 12 | F87: =F64*$E87 -> 335.9698106 | H87: =H64*$E87 -> 342.8001441 | J87: =H87-F87 -> 6.830333444 | L87: =J87/F87 -> 0.0203302
C88: =OneDollar -> Bill 32 Rate | E88: =E87 -> 12 | F88: =F65*$E88 -> 12 | H88: =H65*$E88 -> 12 | J88: =H88-F88 -> 0 | L88: =J88/F88 -> 0
C89: First 100 m3 | E89: 993.1296044 | F89: =F66*$E89/100 -> 297.8602558 | H89: =H66*$E89/100 -> 303.9158144 | J89: =H89-F89 -> 6.055558573 | L89: =J89/F89 -> 0.0203302
C90: Next 400 m3 | E90: 1072.870396 | F90: 315.4370101 | H90: 321.8499076 | J90: 6.412897504 | L90: 0.0203302
C91: GT 500m3 | E91: 0 | F91: 0 | H91: 0 | J91: 0
C92: Contracted Demand | E92: 0 | F92: 0 | H92: 0 | J92: 0
C93: Gas Supply | E93: =SUM(E89:E92) -> 2066 | F93: 390.240542 | H93: 390.240542 | J93: 0 | L93: 0
C94: Upstream Recovery Charge | E94: =E93 -> 2066 | F94: 30.45284 | H94: 30.45284 | J94: 0 | L94: 0
C95: Transportation & Storage Charge | E95: =E94 -> 2066 | F95: 55.744812 | H95: 55.744812 | J95: 0 | L95: 0
C96: Federal Carbon Charge | E96: =E93 -> 2066 | F96: 0 | H96: 0 | J96: 0
C97: Total Delivery | F97: =SUM(F87:F96) -> 1437.705271 | H97: =SUM(H87:H96) -> 1457.00406 | J97: =SUM(J87:J96) -> 19.29878952 | L97: =J97/F97 -> 0.01342332807
C99: Rate Riders | E99: Metric | F99: Current Rate | H99: Proposed Rate | J99: Change $ | L99: Change %
C100: =C76 -> Delay in Revenue Recovery Rate Rider | E100: =E93 -> 2066 | F100: =$E100*F76/100 -> 33.73778 | H100: =$E100*H76/100 -> 33.73778 | J100: =H100-F100 -> 0 | L100: =J100/F100 -> 0
C101: ECVA Rate Rider | E101: =E100 -> 2066 | F101: =$E101*F77/100 -> 5.125746 | H101: =$E101*H77/100 -> 3.706404 | J101: =H101-F101 -> -1.419342 | L101: =J101/F101 -> -0.276904474
C102: CIACVA Rate Rider | E102: =E100 -> 2066 | F102: =$E102*F78/100 -> 47.699808 | H102: =$E102*H78/100 -> 42.85541188 | J102: -4.844396116 | L102: -0.1015600758
C103: MTVA Rate Rider | E103: =E101 -> 2066 | F103: =$E103*F79/100 -> 10.4366056 | H103: =$E103*H79/100 -> -8.551628251 | J103: -18.98823385 | L103: -1.819387891
C104: ORDA Rate Rider | E104: =E102 -> 2066 | F104: =$E104*F80/100 -> -5.656708 | H104: =$E104*H80/100 -> -5.120468816 | J104: 0.5362391838 | L104: -0.09479704164
C105: CVVA Rate Rider | E105: =E53 -> 12 | F105: =$E105*F81 -> 64.44 | H105: =$E105*H81 -> 102.4134372 | J105: 37.9734372 | L105: 0.5892836313
C106: =C82 -> UFG Rate Rider | E106: =E104 -> 2066 | F106: =$E106*F82/100 -> 0 | H106: =$E106*H82/100 -> -5.088074625 | J106: =H106-F106 -> -5.088074625 | L106: =J106/F106 -> 
C107: TVA Rate Rider | E107: =E106 -> 2066 | F107: =$E107*F83/100 -> 0 | H107: =$E107*H83/100 -> 0 | J107: =H107-F107 -> 0 | L107: =J107/F107 -> 
C108: S&TVA Rate Rider | E108: =E107 -> 2066 | F108: 0 | H108: 23.90227285 | J108: 23.90227285
C110: Total Rate Riders | F110: =SUM(F100:F108) -> 155.7832316 | H110: =SUM(H100:H108) -> 187.8551342 | J110: =SUM(J100:J108) -> 32.07190264 | L110: =J110/F110 -> 0.2058751915
C112: Total Bill Impact | F112: =F97+F110 -> 1593.488502 | H112: =H97+H110 -> 1644.859194 | J112: =J97+J110 -> 51.37069216 | L112: =J112/F112 -> 0.03223788066
C114: Rate 1 - Small Commercial | E114: Units | F114: Current Rate | H114: Proposed Rate
C116: Customer | E116: $/month | F116: =F64 -> 27.99748422 | H116: =H64 -> 28.56667867
C117: =OneDollar -> Bill 32 Rate | E117: $/month | F117: 1 | H117: 1
C118: First 100 m3 | E118: ₵/m3 | F118: 29.99208306 | H118: 30.6018281
C119: Next 400 m3 | E119: ₵/m3 | F119: 29.40122231 | H119: 29.99895504
C120: GT 500m3 | E120: ₵/m3 | F120: 28.5327886 | H120: 29.1128659
C121: Contracted Demand | E121: ₵ / contracted m3 | F121: 0 | H121: 0
C122: Gas Supply | E122: ₵/m3 | F122: 18.8887 | H122: 18.8887
C123: Upstream Recovery Charge | E123: ₵/m3 | F123: 1.474 | H123: 1.474
C124: Transportation & Storage Charge | E124: ₵/m3 | F124: 2.6982 | H124: 2.6982
C125: Federal Carbon Charge | E125: ₵/m3 | F125: 0 | H125: 0
C127: Rate Riders
C128: =C76 -> Delay in Revenue Recovery Rate Rider | E128: =E76 -> ₵/m3 | F128: =F76 -> 1.633 | H128: =H76 -> 1.633
C129: ECVA Rate Rider | E129: =E77 -> ₵/m3 | F129: =F77 -> 0.2481 | H129: 0.1794
C130: CIACVA Rate Rider | E130: ₵/m3 | F130: =F78 -> 2.3088 | H130: 2.074318097
C131: MTVA Rate Rider | E131: ₵/m3 | F131: =F79 -> 0.50516 | H131: -0.413921987
C132: ORDA Rate Rider | E132: ₵/m3 | F132: =F80 -> -0.2738 | H132: -0.24784457
C133: CVVA Rate Rider | E133: $/month | F133: =F81 -> 5.37 | H133: 8.5344531
C134: =C82 -> UFG Rate Rider | E134: ₵/m3 | F134: =F82 -> 0 | H134: =H82 -> -0.2462766033
C135: TVA Rate Rider | E135: ₵/m3 | F135: 0 | H135: 0
C136: S&TVA Rate Rider | E136: ₵/m3 | F136: 0 | H136: 1.156934794
C138: Delivery | E138: Metric | F138: Current Rate | H138: Proposed Rate | J138: Change $ | L138: Change %
C139: Customer | E139: 12 | F139: =F116*$E139 -> 335.9698106 | H139: =H116*$E139 -> 342.8001441 | J139: =H139-F139 -> 6.830333444 | L139: =J139/F139 -> 0.0203302
C140: =OneDollar -> Bill 32 Rate | E140: =E139 -> 12 | F140: =F117*$E140 -> 12 | H140: =H117*$E140 -> 12 | J140: =H140-F140 -> 0 | L140: =J140/F140 -> 0
C141: First 100 m3 | E141: 1151 | F141: =F118*$E141/100 -> 345.208876 | H141: =H118*$E141/100 -> 352.2270415 | J141: =H141-F141 -> 7.018165491 | L141: =J141/F141 -> 0.0203302
C142: Next 400 m3 | E142: 2249.9 | F142: 661.4981008 | H142: 674.9464895 | J142: 13.44838869 | L142: 0.0203302
C143: GT 500m3 | E143: 784.4 | F143: 223.8111938 | H143: 228.3613201 | J143: 4.550126331 | L143: 0.0203302
C144: Contracted Demand | E144: 0 | F144: 0 | H144: 0 | J144: 0
C145: Gas Supply | E145: =SUM(E141:E144) -> 4185.3 | F145: 790.5487611 | H145: 790.5487611 | J145: 0 | L145: 0
C146: Upstream Recovery Charge | E146: =E145 -> 4185.3 | F146: 61.691322 | H146: 61.691322 | J146: 0 | L146: 0
C147: Transportation & Storage Charge | E147: =E146 -> 4185.3 | F147: 112.9277646 | H147: 112.9277646 | J147: 0 | L147: 0
C148: Federal Carbon Charge | E148: =E145 -> 4185.3 | F148: 0 | H148: 0 | J148: 0
C149: Total Delivery | F149: =SUM(F139:F148) -> 2543.655829 | H149: =SUM(H139:H148) -> 2575.502843 | J149: =SUM(J139:J148) -> 31.84701396 | L149: =J149/F149 -> 0.01252017415
C151: Rate Riders | E151: Metric | F151: Current Rate | H151: Proposed Rate | J151: Change $ | L151: Change %
C152: =C48 -> Delay in Revenue Recovery Rate Rider | E152: =E145 -> 4185.3 | F152: =$E152*F128/100 -> 68.345949 | H152: =$E152*H128/100 -> 68.345949 | J152: =H152-F152 -> 0 | L152: =J152/F152 -> 0
C153: ECVA Rate Rider | E153: =E146 -> 4185.3 | F153: =$E153*F129/100 -> 10.3837293 | H153: =$E153*H129/100 -> 7.5084282 | J153: =H153-F153 -> -2.8753011 | L153: =J153/F153 -> -0.276904474
C154: CIACVA Rate Rider | E154: 4185.3 | F154: =$E154*F130/100 -> 96.6302064 | H154: =$E154*H130/100 -> 86.81643531 | J154: -9.813771086 | L154: -0.1015600758
C155: MTVA Rate Rider | E155: 4185.3 | F155: =$E155*F131/100 -> 21.14246148 | H155: =$E155*H131/100 -> -17.32387692 | J155: -38.4663384 | L155: -1.819387891
C156: ORDA Rate Rider | E156: =E152 -> 4185.3 | F156: =$E156*F132/100 -> -11.4593514 | H156: =$E156*H132/100 -> -10.37303879 | J156: 1.086312612 | L156: -0.09479704164
C157: CVVA Rate Rider | E157: 12 | F157: =$E157*F133 -> 64.44 | H157: =$E157*H133 -> 102.4134372 | J157: 37.9734372 | L157: 0.5892836313
C158: =C54 -> UFG Rate Rider | E158: =E154 -> 4185.3 | F158: =$E158*F134/100 -> 0 | H158: =$E158*H134/100 -> -10.30741468 | J158: =H158-F158 -> -10.30741468 | L158: =J158/F158 -> 
C159: TVA Rate Rider | E159: 4185.3 | F159: 0 | H159: 0 | J159: 0
C160: S&TVA Rate Rider | E160: 4185.3 | F160: 0 | H160: 48.42119195 | J160: 48.42119195
C161: Total Rate Riders | F161: =SUM(F152:F160) -> 249.4829948 | H161: =SUM(H152:H160) -> 275.5011113 | J161: =SUM(J152:J160) -> 26.01811649 | L161: =J161/F161 -> 0.104288136
C163: Total Bill Impact | F163: =F149+F161 -> 2793.138824 | H163: =H149+H161 -> 2851.003954 | J163: =J149+J161 -> 57.86513045 | L163: =J163/F163 -> 0.02071688308
C165: Rate 1 - Small Agricultural | E165: Units | F165: Current Rate | H165: Proposed Rate
C167: Customer | E167: $/month | F167: =F116 -> 27.99748422 | H167: =H116 -> 28.56667867
C168: =OneDollar -> Bill 32 Rate | E168: $/month | F168: 1 | H168: 1
C169: First 100 m3 | E169: ₵/m3 | F169: =F118 -> 29.99208306 | H169: =H118 -> 30.6018281
C170: Next 400 m3 | E170: ₵/m3 | F170: 29.40122231 | H170: 29.99895504
C171: GT 500m3 | E171: ₵/m3 | F171: 28.5327886 | H171: 29.1128659
C172: Contracted Demand | E172: ₵ / contracted m3 | F172: 0 | H172: 0
C173: Gas Supply | E173: ₵/m3 | F173: 18.8887 | H173: 18.8887
C174: Upstream Recovery Charge | E174: ₵/m3 | F174: 1.474 | H174: 1.474
C175: Transportation & Storage Charge | E175: ₵/m3 | F175: 2.6982 | H175: 2.6982
C176: Federal Carbon Charge | E176: ₵/m3 | F176: 0 | H176: 0
C178: Rate Riders
C179: =C24 -> Delay in Revenue Recovery Rate Rider | E179: ₵/m3 | F179: =F128 -> 1.633 | H179: =H128 -> 1.633
C180: ECVA Rate Rider | E180: ₵/m3 | F180: 0.2481 | H180: 0.1794
C181: CIACVA Rate Rider | E181: ₵/m3 | F181: 2.3088 | H181: 2.074318097
C182: MTVA Rate Rider | E182: ₵/m3 | F182: 0.50516 | H182: -0.413921987
C183: ORDA Rate Rider | E183: ₵/m3 | F183: -0.2738 | H183: -0.24784457
C184: CVVA Rate Rider | E184: =E167 -> $/month | F184: 5.37 | H184: 8.5344531
C185: =C30 -> UFG Rate Rider | E185: ₵/m3 | F185: =F134 -> 0 | H185: =H134 -> -0.2462766033
C186: TVA Rate Rider | E186: ₵/m3 | F186: 0 | H186: 0
C187: S&TVA Rate Rider | E187: ₵/m3 | F187: 0 | H187: 1.156934794
C189: Delivery | E189: Metric | F189: Current Rate | H189: Proposed Rate | J189: Change $ | L189: Change %
C190: Customer | E190: 12 | F190: =F167*$E190 -> 335.9698106 | H190: =H167*$E190 -> 342.8001441 | J190: =H190-F190 -> 6.830333444 | L190: =J190/F190 -> 0.0203302
C191: =OneDollar -> Bill 32 Rate | E191: =E190 -> 12 | F191: =F168*$E191 -> 12 | H191: =H168*$E191 -> 12 | J191: =H191-F191 -> 0 | L191: =J191/F191 -> 0
C192: First 100 m3 | E192: 1200 | F192: =F169*$E192/100 -> 359.9049967 | H192: =H169*$E192/100 -> 367.2219373 | J192: =H192-F192 -> 7.316940564 | L192: =J192/F192 -> 0.0203302
C193: Next 400 m3 | E193: 3367.6 | F193: 990.1155626 | H193: 1010.24481 | J193: 20.12924741 | L193: 0.0203302
C194: GT 500m3 | E194: 2925.4 | F194: 834.6981977 | H194: 851.667779 | J194: 16.9695813 | L194: 0.0203302
C195: Contracted Demand | E195: 0 | F195: 0 | H195: 0 | J195: 0
C196: Commodity | E196: =SUM(E192:E195) -> 7493 | F196: 1415.330291 | H196: 1415.330291 | J196: 0 | L196: 0
C197: Upstream Recovery Charge | E197: =E196 -> 7493 | F197: 110.44682 | H197: 110.44682 | J197: 0 | L197: 0
C198: Transportation & Storage Charge | E198: =E197 -> 7493 | F198: 202.176126 | H198: 202.176126 | J198: 0 | L198: 0
C199: Federal Carbon Charge | E199: =E196 -> 7493 | F199: 0 | H199: 0 | J199: 0
C200: Total Delivery | F200: =SUM(F190:F199) -> 4260.641805 | H200: =SUM(H190:H199) -> 4311.887907 | J200: =SUM(J190:J199) -> 51.24610272 | L200: =J200/F200 -> 0.01202778949
C202: Rate Riders | E202: Metric | F202: Current Rate | H202: Proposed Rate | J202: Change $ | L202: Change %
C203: =C152 -> Delay in Revenue Recovery Rate Rider | E203: =E196 -> 7493 | F203: =$E203*F179/100 -> 122.36069 | H203: =$E203*H179/100 -> 122.36069 | J203: =H203-F203 -> 0 | L203: =J203/F203 -> 0
C204: ECVA Rate Rider | E204: =E197 -> 7493 | F204: =$E204*F180/100 -> 18.590133 | H204: =$E204*H180/100 -> 13.442442 | J204: =H204-F204 -> -5.147691 | L204: =J204/F204 -> -0.276904474
C205: CIACVA Rate Rider | E205: 7493 | F205: =$E205*F181/100 -> 172.998384 | H205: =$E205*H181/100 -> 155.428655 | J205: -17.56972899 | L205: -0.1015600758
C206: MTVA Rate Rider | E206: 7493 | F206: =$E206*F182/100 -> 37.8516388 | H206: =$E206*H182/100 -> -31.01517449 | J206: -68.86681329 | L206: -1.819387891
C207: ORDA Rate Rider | E207: =E206 -> 7493 | F207: =$E207*F183/100 -> -20.515834 | H207: =$E207*H183/100 -> -18.57099363 | J207: 1.94484037 | L207: -0.09479704164
C208: CVVA Rate Rider | E208: =E157 -> 12 | F208: =$E208*F184 -> 64.44 | H208: =$E208*H184 -> 102.4134372 | J208: 37.9734372 | L208: 0.5892836313
C209: =C158 -> UFG Rate Rider | E209: =E206 -> 7493 | F209: =$E209*F185/100 -> 0 | H209: =$E209*H185/100 -> -18.45350589 | J209: -18.45350589
C210: TVA Rate Rider | E210: =E203 -> 7493 | F210: 0 | H210: 0 | J210: 0
C211: S&TVA Rate Rider | E211: 7493 | F211: 0 | H211: 86.68912414 | J211: 86.68912414
C212: Total Rate Riders | F212: =SUM(F203:F211) -> 395.7250118 | H212: =SUM(H203:H211) -> 412.2946743 | J212: =SUM(J203:J211) -> 16.56966255 | L212: =J212/F212 -> 0.04187165848
C214: Total Bill Impact | F214: =F200+F212 -> 4656.366816 | H214: =H200+H212 -> 4724.182582 | J214: =J200+J212 -> 67.81576526 | L214: =J214/F214 -> 0.01456409427

Sheet G1.2 Rate 6 Bill Impact
C2: ='A1.1 Distributor Information'!C3 -> EPCOR Natural Gas Limited Partnership
C3: ='A1.1 Distributor Information'!C4 -> OEB Application Number: EB-2025-0178 Exhibit A - 2026 Custom Incentive Application
C5: Rate 6 Delivery Bill Impact
C6: G1.2 Rate 6 Bill Impact
C8: Rate 6 - Medium Commercial | E8: Units | F8: Current Rate | H8: Proposed Rate
C10: Customer | E10: $/month | F10: =INDEX('B1.1 Current Distribution Rates'!$E$10:$Q$13,2,COUNTA($C$10:C10)) -> 114.1725084 | H10: =INDEX('E1.1 Proposed Dist Rates '!$E$10:$Q$13,2,COUNTA($C$10:C10)) -> 116.4936583
C11: =OneDollar -> Bill 32 Rate | E11: $/month | F11: =INDEX('B1.1 Current Distribution Rates'!$E$10:$Q$13,2,COUNTA($C$10:C11)) -> 1 | H11: =INDEX('E1.1 Proposed Dist Rates '!$E$10:$Q$13,2,COUNTA($C$10:C11)) -> 1
C12: First 1000 m3 | E12: ₵/m3 | F12: =INDEX('B1.1 Current Distribution Rates'!$E$10:$Q$13,2,COUNTA($C$10:C12)) -> 27.66842763 | H12: =INDEX('E1.1 Proposed Dist Rates '!$E$10:$Q$13,2,COUNTA($C$10:C12)) -> 28.23093229
C13: Next 6000 m3 | E13: ₵/m3 | F13: =INDEX('B1.1 Current Distribution Rates'!$E$10:$Q$13,2,COUNTA($C$10:C13)) -> 24.90167885 | H13: =INDEX('E1.1 Proposed Dist Rates '!$E$10:$Q$13,2,COUNTA($C$10:C13)) -> 25.40793496
C14: GT 7000m3 | E14: ₵/m3 | F14: =INDEX('B1.1 Current Distribution Rates'!$E$10:$Q$13,2,COUNTA($C$10:C14)) -> 23.65635994 | H14: =INDEX('E1.1 Proposed Dist Rates '!$E$10:$Q$13,2,COUNTA($C$10:C14)) -> 24.13729847
C15: Contracted Demand | E15: ₵ / contracted m3 | F15: =INDEX('B1.1 Current Distribution Rates'!$E$10:$Q$13,2,COUNTA($C$10:C15)) -> 0 | H15: =INDEX('E1.1 Proposed Dist Rates '!$E$10:$Q$13,2,COUNTA($C$10:C15)) -> 0
C16: Gas Supply | E16: ₵/m3 | F16: =INDEX('B1.1 Current Distribution Rates'!$E$10:$Q$13,2,COUNTA($C$10:C16)) -> 18.8887 | H16: =INDEX('E1.1 Proposed Dist Rates '!$E$10:$Q$13,2,COUNTA($C$10:C16)) -> 18.8887
C17: Upstream Recovery Charge | E17: ₵/m3 | F17: =INDEX('B1.1 Current Distribution Rates'!$E$10:$Q$13,2,COUNTA($C$10:C17)) -> 2.92 | H17: =INDEX('E1.1 Proposed Dist Rates '!$E$10:$Q$13,2,COUNTA($C$10:C17)) -> 2.92
C18: Transportation & Storage Charge | E18: ₵/m3 | F18: =INDEX('B1.1 Current Distribution Rates'!$E$10:$Q$13,2,COUNTA($C$10:C18)) -> 5.6413 | H18: =INDEX('E1.1 Proposed Dist Rates '!$E$10:$Q$13,2,COUNTA($C$10:C18)) -> 5.6413
C19: Federal Carbon Charge | E19: ₵/m3 | F19: ='B1.1 Current Distribution Rates'!Q11 -> 0 | H19: ='E1.1 Proposed Dist Rates '!Q11 -> 0
C21: Rate Riders
C22: ='G1.1 Rate 1 Bill Impact'!C24 -> Delay in Revenue Recovery Rate Rider | E22: ₵/m3 | F22: ='C1.1 Current Rate Riders'!$E$11 -> 0.909 | H22: ='F1.3 Proposed Rate Riders'!$E$10 -> 0.909
C23: ='G1.1 Rate 1 Bill Impact'!C25 -> ECVA Rate Rider | E23: ₵/m3 | F23: ='C1.1 Current Rate Riders'!$E$20 -> 0.2815 | H23: ='F1.3 Proposed Rate Riders'!$E$19 -> 0.1949
C24: ='G1.1 Rate 1 Bill Impact'!C26 -> CIACVA Rate Rider | E24: ₵/m3 | F24: ='C1.1 Current Rate Riders'!$E$29 -> 3.0469 | H24: ='F1.3 Proposed Rate Riders'!$E$28 -> 2.649624611
C25: ='G1.1 Rate 1 Bill Impact'!C27 -> MTVA Rate Rider | E25: ₵/m3 | F25: ='C1.1 Current Rate Riders'!$E$38 -> 0.86511 | H25: ='F1.3 Proposed Rate Riders'!$E$37 -> -0.686125241
C26: ='G1.1 Rate 1 Bill Impact'!C28 -> ORDA Rate Rider | E26: ₵/m3 | F26: ='C1.1 Current Rate Riders'!$E$47 -> -0.2291 | H26: ='F1.3 Proposed Rate Riders'!$E$46 -> -0.200738997
C27: ='G1.1 Rate 1 Bill Impact'!C29 -> CVVA Rate Rider | E27: =E10 -> $/month | F27: ='C1.1 Current Rate Riders'!E56 -> -43.46 | H27: ='F1.3 Proposed Rate Riders'!$E$55 -> 26.028343
C28: ='G1.1 Rate 1 Bill Impact'!C30 -> UFG Rate Rider | E28: ₵/m3 | F28: ='C1.1 Current Rate Riders'!E57 -> 0 | H28: ='F1.3 Proposed Rate Riders'!E64 -> -0.2515741408
C29: ='G1.1 Rate 1 Bill Impact'!C31 -> TVA Rate Rider | E29: =E12 -> ₵/m3 | F29: ='C1.1 Current Rate Riders'!E58 -> 0 | H29: ='F1.3 Proposed Rate Riders'!E73 -> 0
C30: ='G1.1 Rate 1 Bill Impact'!C32 -> S&TVA Rate Rider | E30: ₵/m3 | F30: ='C1.1 Current Rate Riders'!E59 -> 0 | H30: ='F1.3 Proposed Rate Riders'!E82 -> 1.56593139
C32: Delivery | E32: Metric | F32: Current Rate | H32: Proposed Rate | J32: Change $ | L32: Change %
C33: Customer | E33: 12 | F33: =F10*$E33 -> 1370.070101 | H33: =H10*$E33 -> 1397.9239 | J33: =H33-F33 -> 27.85379916 | L33: =J33/F33 -> 0.0203302
C34: =OneDollar -> Bill 32 Rate | E34: =E33 -> 12 | F34: =E34*F11 -> 12 | H34: =E34*H11 -> 12 | J34: 0 | L34: 0
C35: First 1000 m3 | E35: 9818.4 | F35: =F12*$E35/100 -> 2716.596898 | H35: =H12*$E35/100 -> 2771.825856 | J35: 55.22895825 | L35: 0.0203302
C36: Next 6000 m3 | E36: 12105.9 | F36: 3014.57234 | H36: 3075.859198 | J36: 61.28685858 | L36: 0.0203302
C37: GT 7000m3 | E37: 0 | F37: 0 | H37: 0 | J37: 0
C38: Contracted Demand | E38: 0 | F38: 0 | H38: 0 | J38: 0
C39: Gas Supply | E39: =SUM(E35:E38) -> 21924.3 | F39: 4141.215254 | H39: 4141.215254 | J39: 0 | L39: 0
C40: Upstream Recovery Charge | E40: =E39 -> 21924.3 | F40: 640.18956 | H40: 640.18956 | J40: 0 | L40: 0
C41: Transportation & Storage Charge | E41: =E40 -> 21924.3 | F41: 1236.815536 | H41: 1236.815536 | J41: 0 | L41: 0
C42: Federal Carbon Charge | E42: =E41 -> 21924.3 | F42: 0 | H42: 0 | J42: 0
C43: Total Delivery | F43: =SUM(F33:F42) -> 13131.45969 | H43: =SUM(H33:H42) -> 13275.8293 | J43: =SUM(J33:J42) -> 144.369616 | L43: 0.01099417882
C45: Rate Riders | E45: Metric | F45: Current Rate | H45: Proposed Rate | J45: Change $ | L45: Change %
C46: =C22 -> Delay in Revenue Recovery Rate Rider | E46: =E39 -> 21924.3 | F46: =$E46*F22/100 -> 199.291887 | H46: =$E46*H22/100 -> 199.291887 | J46: =H46-F46 -> 0 | L46: =J46/F46 -> 0
C47: ECVA Rate Rider | E47: =E46 -> 21924.3 | F47: =$E47*F23/100 -> 61.7169045 | H47: =$E47*H23/100 -> 42.7304607 | J47: =H47-F47 -> -18.9864438 | L47: =J47/F47 -> -0.3076376554
C48: CIACVA Rate Rider | E48: =E46 -> 21924.3 | F48: =$E48*F24/100 -> 668.0114967 | H48: =$E48*H24/100 -> 580.9116486 | J48: -87.09984811 | L48: -0.1303867501
C49: MTVA Rate Rider | E49: =E48 -> 21924.3 | F49: =$E49*F25/100 -> 189.6693117 | H49: =$E49*H25/100 -> -150.4281562 | J49: -340.0974679 | L49: -1.793107513
C50: ORDA Rate Rider | E50: =E47 -> 21924.3 | F50: =$E50*F26/100 -> -50.2285713 | H50: =$E50*H26/100 -> -44.01061992 | J50: 6.217951381 | L50: -0.1237931165
C51: CVVA Rate Rider | E51: =E33 -> 12 | F51: =$E51*F27 -> -521.52 | H51: =$E51*H27 -> 312.340116 | J51: 833.860116 | L51: -1.598903428
C52: =C28 -> UFG Rate Rider | E52: =E46 -> 21924.3 | F52: =$E52*F28/100 -> 0 | H52: =$E52*H28/100 -> -55.15586934 | J52: =H52-F52 -> -55.15586934 | L52: =J52/F52 -> 
C53: TVA Rate Rider | E53: =E52 -> 21924.3 | F53: 0 | H53: 0 | J53: 0
C54: S&TVA Rate Rider | E54: 21924.3 | F54: 0 | H54: 343.3194958 | J54: 343.3194958
C55: Total Rate Riders | F55: =SUM(F46:F54) -> 546.9410286 | H55: =SUM(H46:H54) -> 1228.998963 | J55: =SUM(J46:J54) -> 682.057934 | L55: =J55/F55 -> 1.247041085
C57: Total Bill Impact | F57: =F43+F55 -> 13678.40072 | H57: =H43+H55 -> 14504.82827 | J57: =J43+J55 -> 826.42755 | L57: =J57/F57 -> 0.06041843393
C60: Rate 6 - Large Commercial | E60: Units | F60: Current Rate | H60: Proposed Rate
C62: Customer | E62: $/month | F62: =F10 -> 114.1725084 | H62: =H10 -> 116.4936583
C63: =OneDollar -> Bill 32 Rate | E63: $/month | F63: 1 | H63: 1
C64: First 1000 m3 | E64: ₵/m3 | F64: 27.66842763 | H64: 28.23093229
C65: Next 6000 m3 | E65: ₵/m3 | F65: 24.90167885 | H65: 25.40793496
C66: GT 7000m3 | E66: ₵/m3 | F66: 23.65635994 | H66: 24.13729847
C67: Contracted Demand | E67: ₵ / contracted m3 | F67: 0 | H67: 0
C68: Gas Supply | E68: ₵/m3 | F68: 18.8887 | H68: 18.8887
C69: Upstream Recovery Charge | E69: ₵/m3 | F69: 2.92 | H69: 2.92
C70: Transportation & Storage Charge | E70: ₵/m3 | F70: 5.6413 | H70: 5.6413
C71: Federal Carbon Charge | E71: ₵/m3 | F71: 0 | H71: 0
C73: Rate Riders
C74: =C22 -> Delay in Revenue Recovery Rate Rider | E74: =E22 -> ₵/m3 | F74: =F22 -> 0.909 | H74: =H22 -> 0.909
C75: ECVA Rate Rider | E75: =E23 -> ₵/m3 | F75: =F23 -> 0.2815 | H75: 0.1949
C76: CIACVA Rate Rider | E76: ₵/m3 | F76: =F24 -> 3.0469 | H76: 2.649624611
C77: MTVA Rate Rider | E77: ₵/m3 | F77: =F25 -> 0.86511 | H77: -0.686125241
C78: ORDA Rate Rider | E78: ₵/m3 | F78: =F26 -> -0.2291 | H78: -0.200738997
C79: CVVA Rate Rider | E79: $/month | F79: =F27 -> -43.46 | H79: 26.028343
C80: =C28 -> UFG Rate Rider | E80: ₵/m3 | F80: =F28 -> 0 | H80: =H28 -> -0.2515741408
C81: TVA Rate Rider | E81: ₵/m3 | F81: 0 | H81: 0
C82: S&TVA Rate Rider | E82: ₵/m3 | F82: 0 | H82: 1.56593139
C84: Delivery | E84: Metric | F84: Current Rate | H84: Proposed Rate | J84: Change $ | L84: Change %
C85: Customer | E85: 12 | F85: =F62*$E85 -> 1370.070101 | H85: =H62*$E85 -> 1397.9239 | J85: =H85-F85 -> 27.85379916 | L85: =J85/F85 -> 0.0203302
C86: =OneDollar -> Bill 32 Rate | E86: 12 | F86: =E86*F63 -> 12 | H86: =E86*H63 -> 12 | J86: =H86-F86 -> 0 | L86: =J86/F86 -> 0
C87: First 1000 m3 | E87: 11745.4 | F87: =F64*$E87/100 -> 3249.767498 | H87: =H64*$E87/100 -> 3315.835921 | J87: =H87-F87 -> 66.06842319 | L87: =J87/F87 -> 0.0203302
C88: Next 6000 m3 | E88: 41499.9 | F88: 10334.17182 | H88: 10544.2676 | J88: 210.0957799 | L88: 0.0203302
C89: GT 7000m3 | E89: 25626.8 | F89: 6062.368049 | H89: 6185.617204 | J89: 123.2491549 | L89: 0.0203302
C90: Contracted Demand | E90: 0 | F90: 0 | H90: 0 | J90: 0
C91: Gas Supply | E91: =SUM(E87:E90) -> 78872.1 | F91: 14897.91435 | H91: 14897.91435 | J91: 0 | L91: 0
C92: Upstream Recovery Charge | E92: =E91 -> 78872.1 | F92: 2303.06532 | H92: 2303.06532 | J92: 0 | L92: 0
C93: Transportation & Storage Charge | E93: =E92 -> 78872.1 | F93: 4449.411777 | H93: 4449.411777 | J93: 0 | L93: 0
C94: Federal Carbon Charge | E94: =E93 -> 78872.1 | F94: 0 | H94: 0 | J94: 0
C95: Total Delivery | F95: =SUM(F85:F94) -> 42678.76892 | H95: =SUM(H85:H94) -> 43106.03608 | J95: =SUM(J85:J94) -> 427.2671572 | L95: =J95/F95 -> 0.01001123435
C97: Rate Riders | E97: Metric | F97: Current Rate | H97: Proposed Rate | J97: Change $ | L97: Change %
C98: =C46 -> Delay in Revenue Recovery Rate Rider | E98: =E91 -> 78872.1 | F98: =$E98*F74/100 -> 716.947389 | H98: =$E98*H74/100 -> 716.947389 | J98: =H98-F98 -> 0 | L98: =J98/F98 -> 0
C99: ECVA Rate Rider | E99: =E98 -> 78872.1 | F99: =$E99*F75/100 -> 222.0249615 | H99: =$E99*H75/100 -> 153.7217229 | J99: =H99-F99 -> -68.3032386 | L99: =J99/F99 -> -0.3076376554
C100: CIACVA Rate Rider | E100: =E99 -> 78872.1 | F100: =$E100*F76/100 -> 2403.154015 | H100: =$E100*H76/100 -> 2089.814573 | J100: -313.3394421 | L100: -0.1303867501
C101: MTVA Rate Rider | E101: 78872.1 | F101: =$E101*F77/100 -> 682.3304243 | H101: =$E101*H77/100 -> -541.1613862 | J101: -1223.491811 | L101: -1.793107513
C102: ORDA Rate Rider | E102: 78872.1 | F102: =$E102*F78/100 -> -180.6959811 | H102: =$E102*H78/100 -> -158.3270625 | J102: 22.36891865 | L102: -0.1237931165
C103: CVVA Rate Rider | E103: =E51 -> 12 | F103: =$E103*F79 -> -521.52 | H103: =$E103*H79 -> 312.340116 | J103: 833.860116 | L103: -1.598903428
C104: =C52 -> UFG Rate Rider | E104: =E99 -> 78872.1 | F104: =$E104*F80/100 -> 0 | H104: =$E104*H80/100 -> -198.4218079 | J104: =H104-F104 -> -198.4218079 | L104: =J104/F104 -> 
C105: TVA Rate Rider | E105: =E104 -> 78872.1 | F105: 0 | H105: 0 | J105: 0
C106: S&TVA Rate Rider | E106: 78872.1 | F106: 0 | H106: 1235.082972 | J106: 1235.082972
C107: Total Rate Riders | F107: =SUM(F98:F106) -> 3322.240809 | H107: =SUM(H98:H106) -> 3609.996516 | J107: =SUM(J98:J106) -> 287.7557077 | L107: =J107/F107 -> 0.08661494584
C109: Total Bill Impact | F109: =F95+F107 -> 46001.00973 | H109: =H95+H107 -> 46716.03259 | J109: =J95+J107 -> 715.0228649 | L109: =J109/F109 -> 0.01554363413

Sheet G1.3 Rate 11 Bill Impact
C2: ='A1.1 Distributor Information'!C3 -> EPCOR Natural Gas Limited Partnership
C3: ='A1.1 Distributor Information'!C4 -> OEB Application Number: EB-2025-0178 Exhibit A - 2026 Custom Incentive Application
C5: Rate 11 Delivery Bill Impact
C6: =MID(CELL("filename",A1),FIND("]",CELL("filename",A1))+1,255) -> G1.3 Rate 11 Bill Impact
C8: Rate 11 - Large Seasonal Service Sample Dryer 1 | E8: Units | F8: Current Rate | H8: Proposed Rate
C10: Customer | E10: $/month | F10: =INDEX('B1.1 Current Distribution Rates'!$E$10:$Q$13,3,COUNTA($C10:C$10)) -> 228.3450168 | H10: =INDEX('E1.1 Proposed Dist Rates '!$E$10:$Q$13,3,COUNTA($C10:C$10)) -> 232.9873166
C11: =OneDollar -> Bill 32 Rate | E11: $/month | F11: =INDEX('B1.1 Current Distribution Rates'!$E$10:$Q$13,3,COUNTA($C$10:C11)) -> 1 | H11: =INDEX('E1.1 Proposed Dist Rates '!$E$10:$Q$13,3,COUNTA($C$10:C11)) -> 1
C12: All Volumes | E12: ₵/m3 | F12: =INDEX('B1.1 Current Distribution Rates'!$E$10:$Q$13,3,COUNTA($C$10:C12)) -> 17.18675851 | H12: =INDEX('E1.1 Proposed Dist Rates '!$E$10:$Q$13,3,COUNTA($C$10:C12)) -> 17.53616875
C13: Tier 2 | E13: ₵/m3 | F13: =INDEX('B1.1 Current Distribution Rates'!$E$10:$Q$13,3,COUNTA($C$10:C13)) -> 17.18675851 | H13: =INDEX('E1.1 Proposed Dist Rates '!$E$10:$Q$13,3,COUNTA($C$10:C13)) -> 17.53616875
C14: Tier 3 | E14: ₵/m3 | F14: =INDEX('B1.1 Current Distribution Rates'!$E$10:$Q$13,3,COUNTA($C$10:C14)) -> 17.18675851 | H14: =INDEX('E1.1 Proposed Dist Rates '!$E$10:$Q$13,3,COUNTA($C$10:C14)) -> 17.53616875
C15: Contracted Demand | E15: ₵ / contracted m3 | F15: =INDEX('B1.1 Current Distribution Rates'!$E$10:$Q$13,3,COUNTA($C$10:C15)) -> 0 | H15: =INDEX('E1.1 Proposed Dist Rates '!$E$10:$Q$13,3,COUNTA($C$10:C15)) -> 0
C16: Gas Supply | E16: ₵/m3 | F16: =INDEX('B1.1 Current Distribution Rates'!$E$10:$Q$13,3,COUNTA($C$10:C16)) -> 18.8887 | H16: =INDEX('E1.1 Proposed Dist Rates '!$E$10:$Q$13,3,COUNTA($C$10:C16)) -> 18.8887
C17: Upstream Recovery Charge | E17: ₵/m3 | F17: =INDEX('B1.1 Current Distribution Rates'!$E$10:$Q$13,3,COUNTA($C$10:C17)) -> 0.0352 | H17: =INDEX('E1.1 Proposed Dist Rates '!$E$10:$Q$13,3,COUNTA($C$10:C17)) -> 0.0352
C18: Transportation & Storage Charge | E18: ₵/m3 | F18: =INDEX('B1.1 Current Distribution Rates'!$E$10:$Q$13,3,COUNTA($C$10:C18)) -> 1.8166 | H18: =INDEX('E1.1 Proposed Dist Rates '!$E$10:$Q$13,3,COUNTA($C$10:C18)) -> 1.8166
C19: Federal Carbon Charge | E19: ₵/m3 | F19: ='B1.1 Current Distribution Rates'!Q12 -> 0 | H19: ='E1.1 Proposed Dist Rates '!Q12 -> 0
C21: Rate Riders
C22: ='G1.1 Rate 1 Bill Impact'!C24 -> Delay in Revenue Recovery Rate Rider | E22: ='G1.1 Rate 1 Bill Impact'!E24 -> ₵/m3 | F22: ='C1.1 Current Rate Riders'!$E$12 -> 0.5524 | H22: ='F1.3 Proposed Rate Riders'!$E$11 -> 0.5524
C23: ='G1.1 Rate 1 Bill Impact'!C25 -> ECVA Rate Rider | E23: ='G1.1 Rate 1 Bill Impact'!E25 -> ₵/m3 | F23: ='C1.1 Current Rate Riders'!$E$21 -> 0.1847 | H23: ='F1.3 Proposed Rate Riders'!$E$20 -> 0.1031
C24: ='G1.1 Rate 1 Bill Impact'!C26 -> CIACVA Rate Rider | E24: ='G1.1 Rate 1 Bill Impact'!E26 -> ₵/m3 | F24: ='C1.1 Current Rate Riders'!$E$30 -> 0.5789 | H24: ='F1.3 Proposed Rate Riders'!$E$29 -> 0.43723579
C25: ='G1.1 Rate 1 Bill Impact'!C27 -> MTVA Rate Rider | E25: ='G1.1 Rate 1 Bill Impact'!E27 -> ₵/m3 | F25: ='C1.1 Current Rate Riders'!$E$39 -> 0.16479 | H25: ='F1.3 Proposed Rate Riders'!$E$38 -> -0.11350957
C26: ='G1.1 Rate 1 Bill Impact'!C28 -> ORDA Rate Rider | E26: ='G1.1 Rate 1 Bill Impact'!E28 -> ₵/m3 | F26: ='C1.1 Current Rate Riders'!$E$48 -> -0.087 | H26: ='F1.3 Proposed Rate Riders'!$E$47 -> -0.066199841
C27: ='G1.1 Rate 1 Bill Impact'!C29 -> CVVA Rate Rider | E27: ='G1.1 Rate 1 Bill Impact'!E29 -> $/month | F27: 0 | H27: ='F1.3 Proposed Rate Riders'!$E$56 -> 0
C28: ='G1.1 Rate 1 Bill Impact'!C30 -> UFG Rate Rider | E28: ='G1.1 Rate 1 Bill Impact'!E30 -> ₵/m3 | F28: 0 | H28: ='F1.3 Proposed Rate Riders'!E65 -> -0.1432767068
C29: ='G1.1 Rate 1 Bill Impact'!C31 -> TVA Rate Rider | E29: ='G1.1 Rate 1 Bill Impact'!E31 -> ₵/m3 | F29: 0 | H29: ='F1.3 Proposed Rate Riders'!E74 -> 0
C30: ='G1.1 Rate 1 Bill Impact'!C32 -> S&TVA Rate Rider | E30: ='G1.1 Rate 1 Bill Impact'!E32 -> ₵/m3 | F30: 0 | H30: ='F1.3 Proposed Rate Riders'!E83 -> 0.4799464337
C32: Delivery | E32: Metric | F32: Current Rate | H32: Proposed Rate | J32: Change $ | L32: Change %
C33: Customer | E33: 12 | F33: =F10*$E33 -> 2740.140201 | H33: =H10*$E33 -> 2795.847799 | J33: =H33-F33 -> 55.70759832 | L33: =J33/F33 -> 0.0203302
C34: =OneDollar -> Bill 32 Rate | E34: 12 | F34: =$E34*F11 -> 12 | H34: =$E34*H11 -> 12 | J34: 0 | L34: 0
C35: All Volumes | E35: 101499.4857 | F35: =F12*$E35/100 -> 17444.47151 | H35: =H12*$E35/100 -> 17799.1211 | J35: 354.6495946 | L35: 0.0203302
C36: Tier 2 | E36: 0 | F36: 0 | H36: 0 | J36: 0
C37: Tier 3 | E37: 0 | F37: 0 | H37: 0 | J37: 0
C38: Contracted Demand | E38: 0 | F38: 0 | H38: 0 | J38: 0
C39: Gas Supply | E39: =SUM(E35:E38) -> 101499.4857 | F39: 19171.93336 | H39: 19171.93336 | J39: 0 | L39: 0
C40: Upstream Recovery Charge | E40: =E39 -> 101499.4857 | F40: 35.72781898 | H40: 35.72781898 | J40: 0 | L40: 0
C41: Transportation & Storage Charge | E41: =E40 -> 101499.4857 | F41: 1843.839658 | H41: 1843.839658 | J41: 0 | L41: 0
C42: Federal Carbon Charge | E42: =E41 -> 101499.4857 | F42: =$E42*F19/100 -> 0 | H42: =$E42*H19/100 -> 0 | J42: 0
C43: Total Delivery | F43: =SUM(F33:F42) -> 41248.11255 | H43: =SUM(H33:H42) -> 41658.46974 | J43: =SUM(J33:J42) -> 410.3571929 | L43: 0.009948508371
C45: Rate Riders | E45: Metric | F45: Current Rate | H45: Proposed Rate | J45: Change $ | L45: Change %
C46: =C22 -> Delay in Revenue Recovery Rate Rider | E46: =E39 -> 101499.4857 | F46: =$E46*F22/100 -> 560.6831592 | H46: =$E46*H22/100 -> 560.6831592 | J46: =H46-F46 -> 0 | L46: =J46/F46 -> 0
C47: ECVA Rate Rider | E47: =E40 -> 101499.4857 | F47: 187.4695502 | H47: 104.6459698 | J47: =H47-F47 -> -82.82358036 | L47: =J47/F47 -> -0.4417975095
C48: CIACVA Rate Rider | E48: 101499.4857 | F48: 587.5805229 | H48: 443.7920783 | J48: -143.7884446 | L48: -0.2447127483
C49: MTVA Rate Rider | E49: 101499.4857 | F49: 167.2610025 | H49: -115.2116298 | J49: -282.4726324 | L49: -1.68881346
C50: ORDA Rate Rider | E50: =E49 -> 101499.4857 | F50: -88.30455259 | H50: -67.19249817 | J50: 21.11205442 | L50: -0.2390822874
C51: CVVA Rate Rider | E51: 12 | F51: 0 | H51: 0 | J51: 0
C52: =C28 -> UFG Rate Rider | E52: =E50 -> 101499.4857 | F52: =$E52*F28/100 -> 0 | H52: =$E52*H28/100 -> -145.4251206 | J52: =H52-F52 -> -145.4251206 | L52: =J52/F52 -> 
C53: TVA Rate Rider | E53: =E46 -> 101499.4857 | F53: 0 | H53: 0 | J53: 0
C54: S&TVA Rate Rider | E54: 101499.4857 | F54: 0 | H54: 487.1431621 | J54: 487.1431621
C55: Total Rate Riders | F55: =SUM(F46:F54) -> 1414.689682 | H55: =SUM(H46:H54) -> 1268.435121 | J55: =SUM(J46:J54) -> -146.2545615 | L55: =J55/F55 -> -0.1033827866
C57: Total Bill Impact | F57: =F43+F55 -> 42662.80223 | H57: =H43+H55 -> 42926.90486 | J57: =J43+J55 -> 264.1026315 | L57: =J57/F57 -> 0.006190466113
C59: Rate 11 - Large Seasonal Service Sample Dryer 2 | E59: Units | F59: Current Rate | H59: Proposed Rate
C61: Customer | E61: $/month | F61: =F10 -> 228.3450168 | H61: =H10 -> 232.9873166
C62: =OneDollar -> Bill 32 Rate | E62: $/month | F62: 1 | H62: 1
C63: All Volumes | E63: ₵/m3 | F63: =F12 -> 17.18675851 | H63: =H12 -> 17.53616875
C64: Tier 2 | E64: ₵/m3 | F64: 17.18675851 | H64: 17.53616875
C65: Tier 3 | E65: ₵/m3 | F65: 17.18675851 | H65: 17.53616875
C66: Contracted Demand | E66: ₵ / contracted m3 | F66: 0 | H66: 0
C67: Gas Supply | E67: ₵/m3 | F67: 18.8887 | H67: 18.8887
C68: Upstream Recovery Charge | E68: ₵/m3 | F68: 0.0352 | H68: 0.0352
C69: Transportation & Storage Charge | E69: ₵/m3 | F69: 1.8166 | H69: 1.8166
C70: Federal Carbon Charge | E70: ₵/m3 | F70: 12.39 | H70: =F70 -> 12.39
C72: Rate Riders
C73: =C22 -> Delay in Revenue Recovery Rate Rider | E73: =E22 -> ₵/m3 | F73: =F22 -> 0.5524 | H73: =H22 -> 0.5524
C74: ECVA Rate Rider | E74: =E23 -> ₵/m3 | F74: =F23 -> 0.1847 | H74: 0.1031
C75: CIACVA Rate Rider | E75: ₵/m3 | F75: 0.5789 | H75: 0.43723579
C76: MTVA Rate Rider | E76: ₵/m3 | F76: 0.16479 | H76: -0.11350957
C77: ORDA Rate Rider | E77: ₵/m3 | F77: -0.087 | H77: -0.066199841
C78: CVVA Rate Rider | E78: $/month | F78: 0 | H78: 0
C79: UFG Rate Rider | E79: ₵/m3 | F79: 0 | H79: -0.1432767068
C80: =C29 -> TVA Rate Rider | E80: ₵/m3 | F80: =F29 -> 0 | H80: =H29 -> 0
C81: S&TVA Rate Rider | E81: ₵/m3 | F81: 0 | H81: 0.4799464337
C83: Delivery | E83: Metric | F83: Current Rate | H83: Proposed Rate | J83: Change $ | L83: Change %
C84: Customer | E84: 12 | F84: =F61*$E84 -> 2740.140201 | H84: =H61*$E84 -> 2795.847799 | J84: =H84-F84 -> 55.70759832 | L84: =J84/F84 -> 0.0203302
C85: =OneDollar -> Bill 32 Rate | E85: 12 | F85: =$E85*F62 -> 12 | H85: =$E85*H62 -> 12 | J85: =H85-F85 -> 0 | L85: =J85/F85 -> 0
C86: All Volumes | E86: 338331.6191 | F86: =F63*$E86/100 -> 58148.23836 | H86: =H63*$E86/100 -> 59330.40367 | J86: =H86-F86 -> 1182.165315 | L86: =J86/F86 -> 0.0203302
C87: Tier 2 | E87: 0 | F87: 0 | H87: 0 | J87: 0
C88: Tier 3 | E88: 0 | F88: 0 | H88: 0 | J88: 0
C89: Contracted Demand | E89: 0 | F89: 0 | H89: 0 | J89: 0
C90: Gas Supply | E90: =SUM(E86:E89) -> 338331.6191 | F90: 63906.44454 | H90: 63906.44454 | J90: 0 | L90: 0
C91: Upstream Recovery Charge | E91: =E90 -> 338331.6191 | F91: 119.0927299 | H91: 119.0927299 | J91: 0 | L91: 0
C92: Transportation & Storage Charge | E92: =E91 -> 338331.6191 | F92: 6146.132193 | H92: 6146.132193 | J92: 0 | L92: 0
C93: Federal Carbon Charge | E93: =E92 -> 338331.6191 | F93: =$E93*F70/100 -> 41919.28761 | H93: =$E93*H70/100 -> 41919.28761 | J93: 0 | L93: 0
C94: Total Delivery | F94: =SUM(F84:F93) -> 172991.3356 | H94: =SUM(H84:H93) -> 174229.2085 | J94: =SUM(J84:J93) -> 1237.872914 | L94: =J94/F94 -> 0.007155693141
C96: Rate Riders | E96: Metric | F96: Current Rate | H96: Proposed Rate | J96: Change $ | L96: Change %
C97: =C73 -> Delay in Revenue Recovery Rate Rider | E97: =E90 -> 338331.6191 | F97: =$E97*F73/100 -> 1868.943864 | H97: =$E97*H73/100 -> 1868.943864 | J97: =H97-F97 -> 0 | L97: =J97/F97 -> 0
C98: ECVA Rate Rider | E98: =E91 -> 338331.6191 | F98: 624.8985005 | H98: 348.8198993 | J98: =H98-F98 -> -276.0786012 | L98: =J98/F98 -> -0.4417975095
C99: CIACVA Rate Rider | E99: 338331.6191 | F99: 1958.601743 | H99: 1479.306928 | J99: -479.2948154 | L99: -0.2447127483
C100: MTVA Rate Rider | E100: 338331.6191 | F100: 557.5366751 | H100: -384.038766 | J100: -941.5754412 | L100: -1.68881346
C101: ORDA Rate Rider | E101: =E100 -> 338331.6191 | F101: -294.3485086 | H101: -223.9749939 | J101: 70.37351472 | L101: -0.2390822874
C102: CVVA Rate Rider | E102: =E85 -> 12 | F102: 0 | H102: 0 | J102: 0
C103: =C79 -> UFG Rate Rider | E103: =E101 -> 338331.6191 | F103: =$E103*F79/100 -> 0 | H103: =$E103*H79/100 -> -484.7504021 | J103: =H103-F103 -> -484.7504021 | L103: =J103/F103 -> 
C104: TVA Rate Rider | E104: =E103 -> 338331.6191 | F104: 0 | H104: 0 | J104: 0
C105: S&TVA Rate Rider | E105: 338331.6191 | F105: 0 | H105: 1623.81054 | J105: 1623.81054
C106: Total Rate Riders | F106: =SUM(F97:F105) -> 4715.632274 | H106: =SUM(H97:H105) -> 4228.117069 | J106: =SUM(J97:J105) -> -487.5152049 | L106: =J106/F106 -> -0.1033827866
C108: Total Bill Impact | F108: =F94+F106 -> 177706.9679 | H108: =H94+H106 -> 178457.3256 | J108: =J94+J106 -> 750.3577088 | L108: =J108/F108 -> 0.004222443935

Sheet G1.4 Rate 16 Bill Impact
C2: ='A1.1 Distributor Information'!C3 -> EPCOR Natural Gas Limited Partnership
C3: ='A1.1 Distributor Information'!C4 -> OEB Application Number: EB-2025-0178 Exhibit A - 2026 Custom Incentive Application
C5: Rate 16 Delivery Bill Impact
C6: =MID(CELL("filename",A1),FIND("]",CELL("filename",A1))+1,255) -> G1.4 Rate 16 Bill Impact
C8: Rate 16 - Contracted Demand | E8: Units | F8: Current Rate | H8: Proposed Rate
C10: Customer | E10: $/month | F10: =INDEX('B1.1 Current Distribution Rates'!$E$10:$Q$13,4,COUNTA($C$10:C10)) -> 1678.98229 | H10: =INDEX('E1.1 Proposed Dist Rates '!$E$10:$Q$13,4,COUNTA($C$10:C10)) -> 1713.116336
C11: =OneDollar -> Bill 32 Rate | E11: $/month | F11: =INDEX('B1.1 Current Distribution Rates'!$E$10:$Q$13,4,COUNTA($C$10:C11)) -> 1 | H11: =INDEX('E1.1 Proposed Dist Rates '!$E$10:$Q$13,4,COUNTA($C$10:C11)) -> 1
C12: Tier 1 | E12: ₵/m3 | F12: =INDEX('B1.1 Current Distribution Rates'!$E$10:$Q$13,4,COUNTA($C$10:C12)) -> 0 | H12: =INDEX('E1.1 Proposed Dist Rates '!$E$10:$Q$13,4,COUNTA($C$10:C12)) -> 0
C13: Tier 2 | E13: ₵/m3 | F13: =INDEX('B1.1 Current Distribution Rates'!$E$10:$Q$13,4,COUNTA($C$10:C13)) -> 0 | H13: =INDEX('E1.1 Proposed Dist Rates '!$E$10:$Q$13,4,COUNTA($C$10:C13)) -> 0
C14: Tier 3 | E14: ₵/m3 | F14: =INDEX('B1.1 Current Distribution Rates'!$E$10:$Q$13,4,COUNTA($C$10:C14)) -> 0 | H14: =INDEX('E1.1 Proposed Dist Rates '!$E$10:$Q$13,4,COUNTA($C$10:C14)) -> 0
C15: Contracted Demand | E15: ₵ / contracted m3 | F15: =INDEX('B1.1 Current Distribution Rates'!$E$10:$Q$13,4,COUNTA($C$10:C15)) -> 114.5223464 | H15: =INDEX('E1.1 Proposed Dist Rates '!$E$10:$Q$13,4,COUNTA($C$10:C15)) -> 116.8506086
C16: Gas Supply | E16: ₵/m3 | F16: =INDEX('B1.1 Current Distribution Rates'!$E$10:$Q$13,4,COUNTA($C$10:C16)) -> 0 | H16: =INDEX('E1.1 Proposed Dist Rates '!$E$10:$Q$13,4,COUNTA($C$10:C16)) -> 0
C17: Upstream Recovery Charge | E17: ₵ / contracted m3 | F17: =INDEX('B1.1 Current Distribution Rates'!$E$10:$Q$13,4,COUNTA($C$10:C17)) -> 14.2434 | H17: =INDEX('E1.1 Proposed Dist Rates '!$E$10:$Q$13,4,COUNTA($C$10:C17)) -> 14.2434
C18: Transportation Charge From Dawn | E18: ₵ / contracted m3 | F18: =INDEX('B1.1 Current Distribution Rates'!$E$10:$Q$13,4,COUNTA($C$10:C18)+1) -> 18.2999 | H18: =INDEX('E1.1 Proposed Dist Rates '!$E$10:$Q$13,4,COUNTA($C$10:C18)+1) -> 18.2999
C19: Transportation Charge From Kirkwall | E19: ₵ / contracted m3 | F19: =INDEX('B1.1 Current Distribution Rates'!$E$10:$Q$13,4,COUNTA($C$10:C19)+1) -> 11.848 | H19: =INDEX('E1.1 Proposed Dist Rates '!$E$10:$Q$13,4,COUNTA($C$10:C19)+1) -> 11.848
C20: Transportation Charge From Parkway | E20: ₵ / contracted m3 | F20: =INDEX('B1.1 Current Distribution Rates'!$E$10:$Q$13,4,COUNTA($C$10:C20)+1) -> 11.848 | H20: =INDEX('E1.1 Proposed Dist Rates '!$E$10:$Q$13,4,COUNTA($C$10:C20)+1) -> 11.848
C21: Federal Carbon Charge | E21: ₵/m3 | F21: =INDEX('B1.1 Current Distribution Rates'!$E$10:$Q$13,4,COUNTA($C$10:C21)+1) -> 0 | H21: =INDEX('E1.1 Proposed Dist Rates '!$E$10:$Q$13,4,COUNTA($C$10:C21)+1) -> 0
C23: Rate Riders
C24: ='G1.2 Rate 6 Bill Impact'!C22 -> Delay in Revenue Recovery Rate Rider | E24: ₵ / contracted m3 | F24: ='C1.1 Current Rate Riders'!$E$13 -> 0.0601 | H24: ='F1.3 Proposed Rate Riders'!$E$12 -> 0.0601
C25: ='G1.2 Rate 6 Bill Impact'!C23 -> ECVA Rate Rider | E25: ₵ / contracted m3 | F25: ='C1.1 Current Rate Riders'!$E$22 -> 0 | H25: ='F1.3 Proposed Rate Riders'!$E$21 -> 0
C26: ='G1.2 Rate 6 Bill Impact'!C24 -> CIACVA Rate Rider | E26: ₵ / contracted m3 | F26: ='C1.1 Current Rate Riders'!$E$31 -> 4.7092 | H26: ='F1.3 Proposed Rate Riders'!$E$30 -> 4.5364
C27: ='G1.2 Rate 6 Bill Impact'!C25 -> MTVA Rate Rider | E27: ₵ / contracted m3 | F27: ='C1.1 Current Rate Riders'!$E$40 -> 1.23968 | H27: ='F1.3 Proposed Rate Riders'!$E$39 -> -1.0891
C28: ='G1.2 Rate 6 Bill Impact'!C26 -> ORDA Rate Rider | E28: ₵ / contracted m3 | F28: ='C1.1 Current Rate Riders'!$E$49 -> -0.1547 | H28: ='F1.3 Proposed Rate Riders'!$E$48 -> -0.1501
C29: ='G1.2 Rate 6 Bill Impact'!C27 -> CVVA Rate Rider | E29: ='G1.3 Rate 11 Bill Impact'!E27 -> $/month | F29: 0 | H29: ='F1.3 Proposed Rate Riders'!$E$57 -> 0
C30: ='G1.2 Rate 6 Bill Impact'!C28 -> UFG Rate Rider | E30: =E26 -> ₵ / contracted m3 | F30: 0 | H30: ='F1.3 Proposed Rate Riders'!E66 -> -5.2768
C31: ='G1.2 Rate 6 Bill Impact'!C29 -> TVA Rate Rider | E31: ₵ / contracted m3 | F31: 0 | H31: ='F1.3 Proposed Rate Riders'!E75 -> 4.1246
C32: ='G1.2 Rate 6 Bill Impact'!C30 -> S&TVA Rate Rider | E32: ₵ / contracted m3 | F32: 0 | H32: ='F1.3 Proposed Rate Riders'!E84 -> 0
C34: Delivery | E34: Metric | F34: Current Rate | H34: Proposed Rate | J34: Change $ | L34: Change %
C35: Customer | E35: 12 | F35: =F10*$E35 -> 20147.78748 | H35: =H10*$E35 -> 20557.39603 | J35: =H35-F35 -> 409.6085491 | L35: =J35/F35 -> 0.0203302
C36: =OneDollar -> Bill 32 Rate | E36: =E35 -> 12 | F36: =$E36*F11 -> 12 | H36: =$E36*H11 -> 12 | J36: 0 | L36: 0
C37: Tier 1 | E37: 0 | F37: =F12*$E37/100 -> 0 | H37: =H12*$E37/100 -> 0 | J37: 0
C38: Tier 2 | E38: 0 | F38: =F13*$E38/100 -> 0 | H38: =H13*$E38/100 -> 0 | J38: 0
C39: Tier 3 | E39: 0 | F39: =F14*$E39/100 -> 0 | H39: =H14*$E39/100 -> 0 | J39: 0
C40: Contracted Demand | E40: 50000 | F40: =F15*$E40/100*$E$35 -> 687134.0784 | H40: =H15*$E40/100*$E$35 -> 701103.6516 | J40: 13969.57324 | L40: 0.0203302
C41: Gas Supply | E41: 0 | F41: =F16*$E41/100 -> 0 | H41: =H16*$E41/100 -> 0 | J41: 0
C42: Upstream Recovery Charge | E42: =$E$40 -> 50000 | F42: =F17*$E42/100*$E$35 -> 85460.4 | H42: =H17*$E42/100*$E$35 -> 85460.4 | J42: 0 | L42: 0
C43: Transportation Charge From Dawn | E43: =$E$40 -> 50000 | F43: =F18*$E43/100*$E$35 -> 109799.4 | H43: =H18*$E43/100*$E$35 -> 109799.4 | J43: 0 | L43: 0
C44: Transportation Charge From Kirkwall | E44: 0 | F44: =F19*$E44/100*$E$35 -> 0 | H44: =H19*$E44/100*$E$35 -> 0 | J44: 0
C45: Transportation Charge From Parkway | E45: 0 | F45: =F20*$E45/100*$E$35 -> 0 | H45: =H20*$E45/100*$E$35 -> 0 | J45: 0
C46: Federal Carbon Charge | E46: =$E$40 -> 50000 | F46: =$E46*F21/100*$E$35 -> 0 | H46: =$E46*H21/100*$E$35 -> 0 | J46: 0
C47: Total Delivery | F47: =SUM(F35:F46) -> 902553.6659 | H47: =SUM(H35:H46) -> 916932.8476 | J47: =SUM(J35:J46) -> 14379.18179 | L47: 0.01593166405
C49: Rate Riders | E49: Metric | F49: Current Rate | H49: Proposed Rate | J49: Change $ | L49: Change %
C50: =C24 -> Delay in Revenue Recovery Rate Rider | E50: =E35 -> 12 | F50: =$E$50*$E40*$F24/100 -> 360.6 | H50: =$E$50*$E40*$H24/100 -> 360.6 | J50: =H50-F50 -> 0 | L50: =J50/F50 -> 0
C51: ECVA Rate Rider | E51: =E50 -> 12 | F51: =$E$50*$E41*$F25/100 -> 0 | H51: =$E$50*$E41*$H25/100 -> 0 | J51: =H51-F51 -> 0 | L51: =J51/F51 -> 
C52: CIACVA Rate Rider | E52: =E51 -> 12 | F52: =$E$50*$E42*$F26/100 -> 28255.2 | H52: =$E$50*$E42*$H26/100 -> 27218.4 | J52: -1036.8 | L52: -0.03669413064
C53: MTVA Rate Rider | E53: =E50 -> 12 | F53: =$E$50*$E43*$F27/100 -> 7438.08 | H53: =$E$50*$E43*$H27/100 -> -6534.6 | J53: -13972.68 | L53: -1.87853317
C54: ORDA Rate Rider | E54: =E51 -> 12 | F54: =$E$50*$E43*$F28/100 -> -928.2 | H54: =$E$50*$E43*$H28/100 -> -900.6 | J54: 27.6 | L54: -0.02973497091
C55: CVVA Rate Rider | E55: =E54 -> 12 | F55: =$E$50*$E45*$F29/100 -> 0 | H55: =$E$50*$E45*$H29/100 -> 0 | J55: 0
C56: =C30 -> UFG Rate Rider | E56: 12 | F56: =$E$50*$E46*$F30/100 -> 0 | H56: =$E$50*$E46*$H30/100 -> -31660.8 | J56: =H56-F56 -> -31660.8 | L56: =J56/F56 -> 
C57: TVA Rate Rider | E57: 12 | F57: 0 | H57: =$E$57*$E46*$H31/100 -> 24747.6 | J57: 24747.6
C58: S&TVA Rate Rider | E58: 12 | F58: 0 | H58: =$E$50*$E40*$H32/100 -> 0 | J58: 0
C59: Total Rate Riders | F59: =SUM(F50:F58) -> 35125.68 | G59: =SUM(G50:G55) -> 0 | H59: =SUM(H50:H58) -> 13230.6 | I59: 0 | J59: =SUM(J50:J58) -> -21895.08 | L59: =J59/F59 -> -0.6233354059
C61: Total Bill Impact | F61: =F47+F59 -> 937679.3459 | H61: =H47+H59 -> 930163.4476 | J61: =J47+J59 -> -7515.898211 | L61: =J61/F61 -> -0.008015424723

Sheet G1.7 Summary of Bill Impacts
C2: ='A1.1 Distributor Information'!C3 -> EPCOR Natural Gas Limited Partnership
C3: ='A1.1 Distributor Information'!C4 -> OEB Application Number: EB-2025-0178 Exhibit A - 2026 Custom Incentive Application
C5: Summary of Bill Impacts
C7: =MID(CELL("filename",A1),FIND("]",CELL("filename",A1))+1,255) -> G1.7 Summary of Bill Impacts
C8: Rate Class | E8: Fixed Charge | F8: =E8 -> Fixed Charge | G8: =OneDollar -> Bill 32 Rate | H8: Volumetric Charge | I8: =H8 -> Volumetric Charge | J8: Rate Riders | K8: =J8 -> Rate Riders | L8: Upstream Recovery Charge | M8: Transportation & Storage Charge | N8: Federal Carbon Charge Change | O8: Total | P8: =O8 -> Total | S8: Check
E9: ($/year) | F9: (%) | G9: ($/year) | H9: ($/year) | I9: (%) | J9: ($/year) | K9: (%) | L9: ($/year) | M9: ($/year) | N9: ($/year) | O9: ($/year) | P9: (%)
C10: Rate 1 | D10: Residential | E10: ='G1.1 Rate 1 Bill Impact'!J35 -> 6.830333444 | F10: ='G1.1 Rate 1 Bill Impact'!L35 -> 0.0203302 | G10: ='G1.1 Rate 1 Bill Impact'!J36 -> 0 | H10: =SUM('G1.1 Rate 1 Bill Impact'!J37:J40) -> 8.611647422 | I10: =F10 -> 0.0203302 | J10: ='G1.1 Rate 1 Bill Impact'!J57 -> 33.90606302 | K10: ='G1.1 Rate 1 Bill Impact'!L57 -> 0.2661505059 | L10: ='G1.1 Rate 1 Bill Impact'!J42 -> 0 | M10: ='G1.1 Rate 1 Bill Impact'!J43 -> 0 | N10: ='G1.1 Rate 1 Bill Impact'!J44 -> 0 | O10: =E10+H10+J10 -> 49.34804389 | P10: ='G1.1 Rate 1 Bill Impact'!L59 -> 0.04020806006 | S10: ='G1.1 Rate 1 Bill Impact'!J59-O10 -> 0
C11: Rate 1 | D11: New Residential | E11: ='G1.1 Rate 1 Bill Impact'!J87 -> 6.830333444 | F11: ='G1.1 Rate 1 Bill Impact'!L87 -> 0.0203302 | G11: ='G1.1 Rate 1 Bill Impact'!J88 -> 0 | H11: =SUM('G1.1 Rate 1 Bill Impact'!J89:J90) -> 12.46845608 | I11: =F11 -> 0.0203302 | J11: ='G1.1 Rate 1 Bill Impact'!J110 -> 32.07190264 | K11: ='G1.1 Rate 1 Bill Impact'!L110 -> 0.2058751915 | L11: ='G1.1 Rate 1 Bill Impact'!J94 -> 0 | M11: ='G1.1 Rate 1 Bill Impact'!J95 -> 0 | N11: ='G1.1 Rate 1 Bill Impact'!J96 -> 0 | O11: =E11+H11+J11 -> 51.37069216 | P11: ='G1.1 Rate 1 Bill Impact'!L112 -> 0.03223788066 | S11: ='G1.1 Rate 1 Bill Impact'!J112-O11 -> 0
C12: Rate 1 | D12: Small Commercial | E12: ='G1.1 Rate 1 Bill Impact'!J139 -> 6.830333444 | F12: ='G1.1 Rate 1 Bill Impact'!L139 -> 0.0203302 | G12: ='G1.1 Rate 1 Bill Impact'!J140 -> 0 | H12: =SUM('G1.1 Rate 1 Bill Impact'!J141:J144) -> 25.01668051 | I12: 0.0203302 | J12: ='G1.1 Rate 1 Bill Impact'!J161 -> 26.01811649 | K12: ='G1.1 Rate 1 Bill Impact'!L161 -> 0.104288136 | L12: ='G1.1 Rate 1 Bill Impact'!J146 -> 0 | M12: ='G1.1 Rate 1 Bill Impact'!J147 -> 0 | N12: ='G1.1 Rate 1 Bill Impact'!J148 -> 0 | O12: 57.86513045 | P12: ='G1.1 Rate 1 Bill Impact'!L163 -> 0.02071688308 | S12: ='G1.1 Rate 1 Bill Impact'!J163-O12 -> 0
C13: Rate 1 | D13: Small Agricultural | E13: ='G1.1 Rate 1 Bill Impact'!J190 -> 6.830333444 | F13: ='G1.1 Rate 1 Bill Impact'!L190 -> 0.0203302 | G13: ='G1.1 Rate 1 Bill Impact'!J191 -> 0 | H13: =SUM('G1.1 Rate 1 Bill Impact'!J192:J195) -> 44.41576927 | I13: 0.0203302 | J13: ='G1.1 Rate 1 Bill Impact'!J212 -> 16.56966255 | K13: ='G1.1 Rate 1 Bill Impact'!L212 -> 0.04187165848 | L13: ='G1.1 Rate 1 Bill Impact'!J197 -> 0 | M13: ='G1.1 Rate 1 Bill Impact'!J198 -> 0 | N13: ='G1.1 Rate 1 Bill Impact'!J199 -> 0 | O13: 67.81576526 | P13: ='G1.1 Rate 1 Bill Impact'!L214 -> 0.01456409427 | S13: ='G1.1 Rate 1 Bill Impact'!J214-O13 -> 0
C14: Rate 6 | D14: Medium Commercial | E14: ='G1.2 Rate 6 Bill Impact'!J33 -> 27.85379916 | F14: ='G1.2 Rate 6 Bill Impact'!L33 -> 0.0203302 | G14: ='G1.2 Rate 6 Bill Impact'!J34 -> 0 | H14: =SUM('G1.2 Rate 6 Bill Impact'!J35:J38) -> 116.5158168 | I14: 0.0203302 | J14: ='G1.2 Rate 6 Bill Impact'!J55 -> 682.057934 | K14: ='G1.2 Rate 6 Bill Impact'!L55 -> 1.247041085 | L14: ='G1.2 Rate 6 Bill Impact'!J40 -> 0 | M14: ='G1.2 Rate 6 Bill Impact'!J41 -> 0 | N14: ='G1.2 Rate 6 Bill Impact'!J42 -> 0 | O14: 826.42755 | P14: ='G1.2 Rate 6 Bill Impact'!L57 -> 0.06041843393 | S14: ='G1.2 Rate 6 Bill Impact'!J57-O14 -> 0
C15: Rate 6 | D15: Large Commercial | E15: ='G1.2 Rate 6 Bill Impact'!J85 -> 27.85379916 | F15: ='G1.2 Rate 6 Bill Impact'!L85 -> 0.0203302 | G15: ='G1.2 Rate 6 Bill Impact'!J86 -> 0 | H15: =SUM('G1.2 Rate 6 Bill Impact'!J87:J90) -> 399.4133581 | I15: 0.0203302 | J15: ='G1.2 Rate 6 Bill Impact'!J107 -> 287.7557077 | K15: ='G1.2 Rate 6 Bill Impact'!L107 -> 0.08661494584 | L15: ='G1.2 Rate 6 Bill Impact'!J92 -> 0 | M15: ='G1.2 Rate 6 Bill Impact'!J93 -> 0 | N15: ='G1.2 Rate 6 Bill Impact'!J94 -> 0 | O15: 715.0228649 | P15: ='G1.2 Rate 6 Bill Impact'!L109 -> 0.01554363413 | S15: ='G1.2 Rate 6 Bill Impact'!J109-O15 -> 0
C16: Rate 11 | D16: Sample Dryer 1 | E16: ='G1.3 Rate 11 Bill Impact'!J33 -> 55.70759832 | F16: ='G1.3 Rate 11 Bill Impact'!L33 -> 0.0203302 | G16: ='G1.3 Rate 11 Bill Impact'!J34 -> 0 | H16: =SUM('G1.3 Rate 11 Bill Impact'!J35:J38) -> 354.6495946 | I16: 0.0203302 | J16: ='G1.3 Rate 11 Bill Impact'!J55 -> -146.2545615 | K16: ='G1.3 Rate 11 Bill Impact'!L55 -> -0.1033827866 | L16: ='G1.3 Rate 11 Bill Impact'!J40 -> 0 | M16: ='G1.3 Rate 11 Bill Impact'!J41 -> 0 | N16: ='G1.3 Rate 11 Bill Impact'!J42 -> 0 | O16: 264.1026315 | P16: ='G1.3 Rate 11 Bill Impact'!L57 -> 0.006190466113 | S16: ='G1.3 Rate 11 Bill Impact'!J57-O16 -> 0
C17: Rate 11 | D17: Sample Dryer 2 | E17: ='G1.3 Rate 11 Bill Impact'!J84 -> 55.70759832 | F17: ='G1.3 Rate 11 Bill Impact'!L84 -> 0.0203302 | G17: ='G1.3 Rate 11 Bill Impact'!J85 -> 0 | H17: =SUM('G1.3 Rate 11 Bill Impact'!J86:J89) -> 1182.165315 | I17: 0.0203302 | J17: ='G1.3 Rate 11 Bill Impact'!J106 -> -487.5152049 | K17: ='G1.3 Rate 11 Bill Impact'!L106 -> -0.1033827866 | L17: ='G1.3 Rate 11 Bill Impact'!J91 -> 0 | M17: ='G1.3 Rate 11 Bill Impact'!J92 -> 0 | N17: ='G1.3 Rate 11 Bill Impact'!J93 -> 0 | O17: 750.3577088 | P17: ='G1.3 Rate 11 Bill Impact'!L108 -> 0.004222443935 | S17: ='G1.3 Rate 11 Bill Impact'!J108-O17 -> 0
C18: Rate 16 | D18: Contracted Demand | E18: ='G1.4 Rate 16 Bill Impact'!J35 -> 409.6085491 | F18: ='G1.4 Rate 16 Bill Impact'!L35 -> 0.0203302 | G18: ='G1.4 Rate 16 Bill Impact'!J36 -> 0 | H18: =SUM('G1.4 Rate 16 Bill Impact'!J37:J40) -> 13969.57324 | I18: 0.0203302 | J18: ='G1.4 Rate 16 Bill Impact'!J59 -> -21895.08 | K18: ='G1.4 Rate 16 Bill Impact'!L59 -> -0.6233354059 | L18: ='G1.4 Rate 16 Bill Impact'!J42 -> 0 | M18: =SUM('G1.4 Rate 16 Bill Impact'!J43:J45) -> 0 | N18: ='G1.4 Rate 16 Bill Impact'!J46 -> 0 | O18: -7515.898211 | P18: ='G1.4 Rate 16 Bill Impact'!L61 -> -0.008015424723 | S18: ='G1.4 Rate 16 Bill Impact'!J61-O18 -> 0

Sheet Overrun
A1: Overrun Charges
A3: Rate 11 | B3: Current | C3: Updated
A4: Authorized Overrun Charge | B4: 17.5581 | C4: =B4*(1+'C1.2 - PCA'!$H$12) -> 17.91505968
A5: Unauthorized Overrun Charge | B5: 420.4559 | C5: =B5*(1+'C1.2 - PCA'!$H$12) -> 429.0038525
A8: Rate 16 | B8: Current | C8: Updated
A9: Authorized Overrun Charge | B9: 5.4867 | C9: =B9*(1+'C1.2 - PCA'!$H$12) -> 5.598245708
A10: Unauthorized Overrun Charge | B10: 420.564 | C10: =B10*(1+'C1.2 - PCA'!$H$12) -> 429.1141502
